Workbook

Sheet Instructions

Sheet InputSheetOp1
D2: Red cells CAN'T be amended by the user
D3: Orange cells CAN be amended by the user
D4: Yellow cells must equal 100%
C5: Hover your cursor over cells with a red triangle in top right corner for an explanation of its purpose
J18: Forecast Years (1-5) | K18: 5
C19: STP | D19: =IF(AND('Piv1'!$B$2="(All)",'Piv1'!$B$1="(All)"),"(All)",'Piv1'!$M$5) -> NWL | G19: Borough population | H19: ='Piv1'!$A$5 -> 226344 | J19: Population growth | K19: =(1+(('Piv1'!$J$5/'Piv1'!$A$5)^(1/5)-1))^K18-1 -> 0.04812224914 | M19: 1 - 5 year population | N19: =H19*(1+K19) -> 237236.1824 | O19: Whole Borough
G20: Population override | J20: Population growth override | M20: 1 - 5 year population | N20: =IF(OR(K20="",K20=0),(H20*(1+K19)),(H20*(1+K20))) -> 0 | O20: Overwritten
C21: Borough | D21: ='Piv1'!$B$2 -> Hammersmith and Fulham
C27: Option 1
C29: Activity | D29: Activity Proportion | E29: Consultations per person per year | F29: % growth in consultations per person per year | G29: Total primary care consultations 2017 | H29: Total primary care consultations in future (1-5 years)
C30: General activity | D30: 1 | E30: 5.4 | F30: 0.0298 | G30: =IF(H20>0,E30*H20*D30,E30*H19*D30) -> 1222257.6 | H30: =IF(N20>0,N20*E30*(1+F30)^$K$18*D30,N19*E30*(1+F30)^$K$18*D30) -> 1483676.179
D41: Voluntary Sector | E41: 0
D42: Self Care | E42: 0
D43: Patient Led Group | E43: 0
D44: Social Prescribing | E44: 0
D45: Care Navigation | E45: 0
D46: Add New | E46: 0
D47: Add New | E47: 0
D48: Add New | E48: 0
D58: Clinical Time per consultation(mins)
B59: Consultation medium | C59: Face to Face | D59: 10 | F59: 0.77
C60: e-consultation | D60: 10 | F60: 0
C61: Telephone | D61: 5 | F61: 0.2
C62: Group consultation | D62: 10 | F62: 0
C63: Home Visit | D63: 20 | F63: 0.03
C64: Email | D64: 5 | F64: 0
C65: Add New | D65: 0 | F65: 0
C66: Add New | D66: 0 | F66: 0
F67: =SUM(F59:F66) -> 1
C69: Role Type | D69: GP | F69: 0.7
D70: Nurse | F70: 0.27
D71: Consultant | F71: 0
D72: Pharmacist | F72: 0
D73: Dietician | F73: 0
D74: HCA | F74: 0.03
D75: Psychologist | F75: 0
D76: Physician Associate | F76: 0
D77: Physiotherapist | F77: 0
D78: Podiatrist | F78: 0
D79: DSN | F79: 0
D80: Add New | F80: 0
D81: Add New | F81: 0
D82: Add New | F82: 0
D83: Add New | F83: 0
F84: =SUM(F69:F83) -> 1
F91: National GP : Patient Ratio Avg | G91: 2100 | H91: National Nurse : Patient Ratio Avg | I91: 4500
D94: System Cost | H94: Model Demand | K94: Current Capacity | O94: to be hidden
D95: (£) Per FTE P/A | F95: Non Clinical Time | H95: Model FTE required to meet demand in general activity - Guide | I95: Ratio Scaled Population - Guide | K95: NHS Digital Data Total - Guide | L95: Ratio Borough Population - Guide | M95: Ratio Scaled Population - Guide | N95: Baseline | O95: Input
C96: =D69 -> GP | D96: 100000 | F96: 0.3 | H96: =IFERROR(((((1-SUM($E$41:$E$48))*$G$30)*($D$59*$F$59+$D$60*$F$60+$D$61*$F$61+$D$62*$F$62+$D$63*$F$63+$D$64*$F$64+$D$65*$F$65+$D$66*$F$66))/60*F69/Table!Y31),0) -> 117.4883274 | I96: =MROUND((IFERROR((IF($H$20>0,$H$20/H96,$H$19/H96)),0)),100) -> 1900 | K96: ='Piv1'!$E$5 -> 124.2266823 | L96: =IF($H$20>0,$H$20/$H$19*K96,"") ->  | M96: =IF($H$20>0,MROUND($H$20/L96,100),MROUND($H$19/K96,100)) -> 1800 | N96: 124 | O96: =IF(OR(N96="",N96=0),H96,N96) -> 124 | Q96: O96 to O110 will be hidden: the idea is: if they do not fill anything into the baseline column we will use the number suggested by the model (Paul suggested)
C97: =D70 -> Nurse | D97: 40000 | F97: 0.3 | H97: =IFERROR(((((1-SUM($E$41:$E$48))*$G$30)*($D$59*$F$59+$D$60*$F$60+$D$61*$F$61+$D$62*$F$62+$D$63*$F$63+$D$64*$F$64+$D$65*$F$65+$D$66*$F$66))/60*F70/Table!Y32),0) -> 45.3169263 | I97: =MROUND((IFERROR((IF($H$20>0,$H$20/H97,$H$19/H97)),0)),100) -> 5000 | K97: ='Piv1'!$F$5 -> 45.38999957 | L97: =IF($H$20>0,$H$20/$H$19*K97,"") ->  | M97: =IF($H$20>0,MROUND($H$20/L97,100),MROUND($H$19/K97,100)) -> 5000 | N97: 45 | O97: =IF(OR(N97="",N97=0),H97,N97) -> 45
C98: Consultant | D98: 120000 | F98: 0.15 | H98: =IFERROR(((((1-SUM($E$41:$E$48))*$G$30)*($D$59*$F$59+$D$60*$F$60+$D$61*$F$61+$D$62*$F$62+$D$63*$F$63+$D$64*$F$64+$D$65*$F$65+$D$66*$F$66))/60*F71/Table!Y33),0) -> 0 | O98: 0
C99: Pharmacist | D99: 50000 | F99: 0.15 | H99: =IFERROR(((((1-SUM($E$41:$E$48))*$G$30)*($D$59*$F$59+$D$60*$F$60+$D$61*$F$61+$D$62*$F$62+$D$63*$F$63+$D$64*$F$64+$D$65*$F$65+$D$66*$F$66))/60*F72/Table!Y34),0) -> 0 | O99: 0
C100: Dietician | D100: 45000 | F100: 0.15 | H100: =IFERROR(((((1-SUM($E$41:$E$48))*$G$30)*($D$59*$F$59+$D$60*$F$60+$D$61*$F$61+$D$62*$F$62+$D$63*$F$63+$D$64*$F$64+$D$65*$F$65+$D$66*$F$66))/60*F73/Table!Y35),0) -> 0 | O100: 0
C101: HCA | D101: 30000 | F101: 0.15 | H101: =IFERROR(((((1-SUM($E$41:$E$48))*$G$30)*($D$59*$F$59+$D$60*$F$60+$D$61*$F$61+$D$62*$F$62+$D$63*$F$63+$D$64*$F$64+$D$65*$F$65+$D$66*$F$66))/60*F74/Table!Y36),0) -> 4.146646851 | N101: 4 | O101: 4
C102: Psychologist | D102: 50000 | F102: 0.15 | H102: =IFERROR(((((1-SUM($E$41:$E$48))*$G$30)*($D$59*$F$59+$D$60*$F$60+$D$61*$F$61+$D$62*$F$62+$D$63*$F$63+$D$64*$F$64+$D$65*$F$65+$D$66*$F$66))/60*F75/Table!Y37),0) -> 0 | O102: 0
C103: Physician Associate | D103: 40000 | F103: 0.15 | H103: =IFERROR(((((1-SUM($E$41:$E$48))*$G$30)*($D$59*$F$59+$D$60*$F$60+$D$61*$F$61+$D$62*$F$62+$D$63*$F$63+$D$64*$F$64+$D$65*$F$65+$D$66*$F$66))/60*F76/Table!Y38),0) -> 0 | O103: 0
C104: Physiotherapist | D104: 40000 | F104: 0.15 | H104: =IFERROR(((((1-SUM($E$41:$E$48))*$G$30)*($D$59*$F$59+$D$60*$F$60+$D$61*$F$61+$D$62*$F$62+$D$63*$F$63+$D$64*$F$64+$D$65*$F$65+$D$66*$F$66))/60*F77/Table!Y39),0) -> 0 | O104: 0
C105: Podiatrist | D105: 40000 | F105: 0.15 | H105: =IFERROR(((((1-SUM($E$41:$E$48))*$G$30)*($D$59*$F$59+$D$60*$F$60+$D$61*$F$61+$D$62*$F$62+$D$63*$F$63+$D$64*$F$64+$D$65*$F$65+$D$66*$F$66))/60*F78/Table!Y40),0) -> 0 | O105: 0
C106: DSN | D106: 50000 | F106: 0.15 | H106: =IFERROR(((((1-SUM($E$41:$E$48))*$G$30)*($D$59*$F$59+$D$60*$F$60+$D$61*$F$61+$D$62*$F$62+$D$63*$F$63+$D$64*$F$64+$D$65*$F$65+$D$66*$F$66))/60*F79/Table!Y41),0) -> 0 | O106: 0
C107: Add New | F107: 0.15 | H107: =IFERROR(((((1-SUM($E$41:$E$48))*$G$30)*($D$59*$F$59+$D$60*$F$60+$D$61*$F$61+$D$62*$F$62+$D$63*$F$63+$D$64*$F$64+$D$65*$F$65+$D$66*$F$66))/60*F80/Table!Y42),0) -> 0 | O107: 0
C108: Add New | F108: 0.15 | H108: =IFERROR(((((1-SUM($E$41:$E$48))*$G$30)*($D$59*$F$59+$D$60*$F$60+$D$61*$F$61+$D$62*$F$62+$D$63*$F$63+$D$64*$F$64+$D$65*$F$65+$D$66*$F$66))/60*F81/Table!Y43),0) -> 0 | O108: 0
C109: Add New | F109: 0.15 | H109: =IFERROR(((((1-SUM($E$41:$E$48))*$G$30)*($D$59*$F$59+$D$60*$F$60+$D$61*$F$61+$D$62*$F$62+$D$63*$F$63+$D$64*$F$64+$D$65*$F$65+$D$66*$F$66))/60*F82/Table!Y44),0) -> 0 | O109: 0
C110: Add New | F110: 0.15 | H110: =IFERROR(((((1-SUM($E$41:$E$48))*$G$30)*($D$59*$F$59+$D$60*$F$60+$D$61*$F$61+$D$62*$F$62+$D$63*$F$63+$D$64*$F$64+$D$65*$F$65+$D$66*$F$66))/60*F83/Table!Y45),0) -> 0 | O110: 0
O111: =IF(OR(N111="",N111=0),H111,N111) -> 0
C112: Administrator | D112: 25000 | H112: =SUM(H96:H110)/Table!Y26 -> 20.86898757
C122: Roles | D122: Input | F122: Future Capacity (1-5 years) | G122: Future Demand (1-5 years) | I122: Baseline | J122: Future - Do Nothing | K122: Scenario 1 | L122: Scenario 2 | M122: Scenario 3 | N122: Scenario 4 | O122: Scenario 5
C123: =D69 -> GP | D123: 124 | F123: =Table!$Z$51 -> 131.0717185 | G123: =Table!$Z$52 -> 150.5213354 | I123: 124 | J123: 150.5213354
C124: =D70 -> Nurse | D124: 45 | F124: =Table!$Z$53 -> 43.11681161 | G124: =Table!$Z$54 -> 54.62467818 | I124: 45 | J124: 54.62467818
C125: Consultant | D125: 0 | G125: =D125*(1+$K$19)*(1+$F$30)^5 -> 0 | I125: 0 | J125: 0
C126: Pharmacist | D126: 0 | G126: =D126*(1+$K$19)*(1+$F$30)^5 -> 0 | I126: 0 | J126: 0
C127: Dietician | D127: 0 | G127: 0 | I127: 0 | J127: 0
C128: HCA | D128: 4 | G128: 4.855526949 | I128: 4 | J128: 4.855526949
C129: Psychologist | D129: 0 | G129: 0 | I129: 0 | J129: 0
C130: Physician Associate | D130: 0 | G130: 0 | I130: 0 | J130: 0
C131: Physiotherapist | D131: 0 | G131: 0 | I131: 0 | J131: 0
C132: Podiatrist | D132: 0 | G132: 0 | I132: 0 | J132: 0
C133: DSN | D133: 0 | G133: 0 | I133: 0 | J133: 0
C134: Add New | D134: 0 | G134: 0 | I134: 0 | J134: 0
C135: Add New | D135: 0 | G135: 0 | I135: 0 | J135: 0
C136: Add New | D136: 0 | G136: 0 | I136: 0 | J136: 0
C137: Add New | D137: 0 | G137: 0 | I137: 0 | J137: 0
H140: System Cost | I140: =I123*$D96+I124*$D97+I125*$D98+I126*$D99+I127*$D100+I128*$D101+I129*$D102+I130*$D103+I131*$D104+I132*$D105+I133*$D106+I134*$D107+I135*$D108+I136*$D109+I137*$D110 -> 14320000 | J140: =J123*$D96+J124*$D97+J125*$D98+J126*$D99+J127*$D100+J128*$D101+J129*$D102+J130*$D103+J131*$D104+J132*$D105+J133*$D106+J134*$D107+J135*$D108+J136*$D109+J137*$D110 -> 17382786.48 | K140: =K123*$D96+K124*$D97+K125*$D98+K126*$D99+K127*$D100+K128*$D101+K129*$D102+K130*$D103+K131*$D104+K132*$D105+K133*$D106+K134*$D107+K135*$D108+K136*$D109+K137*$D110 -> 0 | L140: =L123*$D96+L124*$D97+L125*$D98+L126*$D99+L127*$D100+L128*$D101+L129*$D102+L130*$D103+L131*$D104+L132*$D105+L133*$D106+L134*$D107+L135*$D108+L136*$D109+L137*$D110 -> 0 | M140: 0 | N140: 0 | O140: 0
H141: Per head of population cost | I141: =IF($H$20>0,I140/$H$20,I140/$H$19) -> 63.26653236 | J141: =IF($H$20>0,J140/$H$20,J140/$H$19) -> 76.79808821 | K141: =IF($H$20>0,K140/$H$20,K140/$H$19) -> 0 | L141: 0 | M141: 0 | N141: 0 | O141: 0

Sheet Iputsheet1Dashboard
B46: Skill Mix Scenarios
B47: =[1]InputSheetOp1!I122 -> Baseline | C47: =[1]InputSheetOp1!J122 -> Future - Do Nothing | D47: =[1]InputSheetOp1!K122 -> Scenario 1 | E47: =[1]InputSheetOp1!L122 -> Scenario 2 | F47: =[1]InputSheetOp1!M122 -> Scenario 3 | G47: =[1]InputSheetOp1!N122 -> Scenario 4 | H47: =[1]InputSheetOp1!O122 -> Scenario 5 | K47: =InputSheetOp1!I122 -> Baseline | L47: =InputSheetOp1!J122 -> Future - Do Nothing | M47: =InputSheetOp1!K122 -> Scenario 1 | N47: =InputSheetOp1!L122 -> Scenario 2 | O47: =InputSheetOp1!M122 -> Scenario 3 | P47: =InputSheetOp1!N122 -> Scenario 4 | Q47: =InputSheetOp1!O122 -> Scenario 5
A48: =[1]InputSheetOp1!D69 -> GP | B48: =InputSheetOp1!I123 -> 124 | C48: =InputSheetOp1!J123 -> 150.5213354 | D48: =InputSheetOp1!K123 -> 0 | E48: =InputSheetOp1!L123 -> 0 | F48: =InputSheetOp1!M123 -> 0 | G48: =InputSheetOp1!N123 -> 0 | H48: =InputSheetOp1!O123 -> 0 | K48: =InputSheetOp1!I123 -> 124 | L48: =InputSheetOp1!J123 -> 150.5213354 | M48: =InputSheetOp1!K123 -> 0 | N48: =InputSheetOp1!L123 -> 0 | O48: =InputSheetOp1!M123 -> 0 | P48: =InputSheetOp1!N123 -> 0 | Q48: =InputSheetOp1!O123 -> 0
A49: =[1]InputSheetOp1!D70 -> Nurse | B49: =InputSheetOp1!I124 -> 45 | C49: =InputSheetOp1!J124 -> 54.62467818 | D49: =InputSheetOp1!K124 -> 0 | E49: =InputSheetOp1!L124 -> 0 | F49: =InputSheetOp1!M124 -> 0 | G49: =InputSheetOp1!N124 -> 0 | H49: =InputSheetOp1!O124 -> 0 | K49: =InputSheetOp1!I124 -> 45 | L49: =InputSheetOp1!J124 -> 54.62467818 | M49: =InputSheetOp1!K124 -> 0 | N49: =InputSheetOp1!L124 -> 0 | O49: =InputSheetOp1!M124 -> 0 | P49: =InputSheetOp1!N124 -> 0 | Q49: =InputSheetOp1!O124 -> 0
A50: =[1]InputSheetOp1!D71 -> Consultant | B50: =InputSheetOp1!I125 -> 0 | C50: =InputSheetOp1!J125 -> 0 | D50: =InputSheetOp1!K125 -> 0 | E50: =InputSheetOp1!L125 -> 0 | F50: =InputSheetOp1!M125 -> 0 | G50: =InputSheetOp1!N125 -> 0 | H50: =InputSheetOp1!O125 -> 0 | K50: =InputSheetOp1!I125 -> 0 | L50: =InputSheetOp1!J125 -> 0 | M50: =InputSheetOp1!K125 -> 0 | N50: =InputSheetOp1!L125 -> 0 | O50: =InputSheetOp1!M125 -> 0 | P50: =InputSheetOp1!N125 -> 0 | Q50: =InputSheetOp1!O125 -> 0
A51: =[1]InputSheetOp1!D72 -> Pharmacist | B51: =InputSheetOp1!I126 -> 0 | C51: =InputSheetOp1!J126 -> 0 | D51: =InputSheetOp1!K126 -> 0 | E51: =InputSheetOp1!L126 -> 0 | F51: =InputSheetOp1!M126 -> 0 | G51: =InputSheetOp1!N126 -> 0 | H51: =InputSheetOp1!O126 -> 0 | K51: =InputSheetOp1!I126 -> 0 | L51: =InputSheetOp1!J126 -> 0 | M51: =InputSheetOp1!K126 -> 0 | N51: =InputSheetOp1!L126 -> 0 | O51: =InputSheetOp1!M126 -> 0 | P51: =InputSheetOp1!N126 -> 0 | Q51: =InputSheetOp1!O126 -> 0
A52: =[1]InputSheetOp1!D73 -> Dietician | B52: =InputSheetOp1!I127 -> 0 | C52: =InputSheetOp1!J127 -> 0 | D52: =InputSheetOp1!K127 -> 0 | E52: =InputSheetOp1!L127 -> 0 | F52: =InputSheetOp1!M127 -> 0 | G52: =InputSheetOp1!N127 -> 0 | H52: =InputSheetOp1!O127 -> 0 | K52: =InputSheetOp1!I127 -> 0 | L52: =InputSheetOp1!J127 -> 0 | M52: =InputSheetOp1!K127 -> 0 | N52: =InputSheetOp1!L127 -> 0 | O52: =InputSheetOp1!M127 -> 0 | P52: =InputSheetOp1!N127 -> 0 | Q52: =InputSheetOp1!O127 -> 0
A53: =[1]InputSheetOp1!D74 -> HCA | B53: =InputSheetOp1!I128 -> 4 | C53: =InputSheetOp1!J128 -> 4.855526949 | D53: =InputSheetOp1!K128 -> 0 | E53: =InputSheetOp1!L128 -> 0 | F53: =InputSheetOp1!M128 -> 0 | G53: =InputSheetOp1!N128 -> 0 | H53: =InputSheetOp1!O128 -> 0 | K53: =InputSheetOp1!I128 -> 4 | L53: =InputSheetOp1!J128 -> 4.855526949 | M53: =InputSheetOp1!K128 -> 0 | N53: =InputSheetOp1!L128 -> 0 | O53: =InputSheetOp1!M128 -> 0 | P53: =InputSheetOp1!N128 -> 0 | Q53: =InputSheetOp1!O128 -> 0
A54: =[1]InputSheetOp1!D75 -> Psychologist | B54: =InputSheetOp1!I129 -> 0 | C54: =InputSheetOp1!J129 -> 0 | D54: =InputSheetOp1!K129 -> 0 | E54: =InputSheetOp1!L129 -> 0 | F54: =InputSheetOp1!M129 -> 0 | G54: =InputSheetOp1!N129 -> 0 | H54: =InputSheetOp1!O129 -> 0 | K54: =InputSheetOp1!I129 -> 0 | L54: =InputSheetOp1!J129 -> 0 | M54: =InputSheetOp1!K129 -> 0 | N54: =InputSheetOp1!L129 -> 0 | O54: =InputSheetOp1!M129 -> 0 | P54: =InputSheetOp1!N129 -> 0 | Q54: =InputSheetOp1!O129 -> 0
A55: =[1]InputSheetOp1!D76 -> Physician Associate | B55: =InputSheetOp1!I130 -> 0 | C55: =InputSheetOp1!J130 -> 0 | D55: =InputSheetOp1!K130 -> 0 | E55: =InputSheetOp1!L130 -> 0 | F55: =InputSheetOp1!M130 -> 0 | G55: =InputSheetOp1!N130 -> 0 | H55: =InputSheetOp1!O130 -> 0 | K55: =InputSheetOp1!I130 -> 0 | L55: =InputSheetOp1!J130 -> 0 | M55: =InputSheetOp1!K130 -> 0 | N55: =InputSheetOp1!L130 -> 0 | O55: =InputSheetOp1!M130 -> 0 | P55: =InputSheetOp1!N130 -> 0 | Q55: =InputSheetOp1!O130 -> 0
A56: =[1]InputSheetOp1!D77 -> Physiotherapist | B56: =InputSheetOp1!I131 -> 0 | C56: =InputSheetOp1!J131 -> 0 | D56: =InputSheetOp1!K131 -> 0 | E56: =InputSheetOp1!L131 -> 0 | F56: =InputSheetOp1!M131 -> 0 | G56: =InputSheetOp1!N131 -> 0 | H56: =InputSheetOp1!O131 -> 0 | K56: =InputSheetOp1!I131 -> 0 | L56: =InputSheetOp1!J131 -> 0 | M56: =InputSheetOp1!K131 -> 0 | N56: =InputSheetOp1!L131 -> 0 | O56: =InputSheetOp1!M131 -> 0 | P56: =InputSheetOp1!N131 -> 0 | Q56: =InputSheetOp1!O131 -> 0
A57: =[1]InputSheetOp1!D78 -> Podiatrist | B57: =InputSheetOp1!I132 -> 0 | C57: =InputSheetOp1!J132 -> 0 | D57: =InputSheetOp1!K132 -> 0 | E57: =InputSheetOp1!L132 -> 0 | F57: =InputSheetOp1!M132 -> 0 | G57: =InputSheetOp1!N132 -> 0 | H57: =InputSheetOp1!O132 -> 0 | K57: =InputSheetOp1!I132 -> 0 | L57: =InputSheetOp1!J132 -> 0 | M57: =InputSheetOp1!K132 -> 0 | N57: =InputSheetOp1!L132 -> 0 | O57: =InputSheetOp1!M132 -> 0 | P57: =InputSheetOp1!N132 -> 0 | Q57: =InputSheetOp1!O132 -> 0
A58: =[1]InputSheetOp1!D79 -> DSN | B58: =InputSheetOp1!I133 -> 0 | C58: =InputSheetOp1!J133 -> 0 | D58: =InputSheetOp1!K133 -> 0 | E58: =InputSheetOp1!L133 -> 0 | F58: =InputSheetOp1!M133 -> 0 | G58: =InputSheetOp1!N133 -> 0 | H58: =InputSheetOp1!O133 -> 0 | K58: =InputSheetOp1!I133 -> 0 | L58: =InputSheetOp1!J133 -> 0 | M58: =InputSheetOp1!K133 -> 0 | N58: =InputSheetOp1!L133 -> 0 | O58: =InputSheetOp1!M133 -> 0 | P58: =InputSheetOp1!N133 -> 0 | Q58: =InputSheetOp1!O133 -> 0
A59: =[1]InputSheetOp1!D80 -> Add New | B59: =InputSheetOp1!I134 -> 0 | C59: =InputSheetOp1!J134 -> 0 | D59: =InputSheetOp1!K134 -> 0 | E59: =InputSheetOp1!L134 -> 0 | F59: =InputSheetOp1!M134 -> 0 | G59: =InputSheetOp1!N134 -> 0 | H59: =InputSheetOp1!O134 -> 0 | K59: =InputSheetOp1!I134 -> 0 | L59: =InputSheetOp1!J134 -> 0 | M59: =InputSheetOp1!K134 -> 0 | N59: =InputSheetOp1!L134 -> 0 | O59: =InputSheetOp1!M134 -> 0 | P59: =InputSheetOp1!N134 -> 0 | Q59: =InputSheetOp1!O134 -> 0
A60: =[1]InputSheetOp1!D81 -> Add New | B60: =InputSheetOp1!I135 -> 0 | C60: =InputSheetOp1!J135 -> 0 | D60: =InputSheetOp1!K135 -> 0 | E60: =InputSheetOp1!L135 -> 0 | F60: =InputSheetOp1!M135 -> 0 | G60: =InputSheetOp1!N135 -> 0 | H60: =InputSheetOp1!O135 -> 0 | K60: =InputSheetOp1!I135 -> 0 | L60: =InputSheetOp1!J135 -> 0 | M60: =InputSheetOp1!K135 -> 0 | N60: =InputSheetOp1!L135 -> 0 | O60: =InputSheetOp1!M135 -> 0 | P60: =InputSheetOp1!N135 -> 0 | Q60: =InputSheetOp1!O135 -> 0
A61: =[1]InputSheetOp1!D82 -> Add New | B61: =InputSheetOp1!I136 -> 0 | C61: =InputSheetOp1!J136 -> 0 | D61: =InputSheetOp1!K136 -> 0 | E61: =InputSheetOp1!L136 -> 0 | F61: =InputSheetOp1!M136 -> 0 | G61: =InputSheetOp1!N136 -> 0 | H61: =InputSheetOp1!O136 -> 0 | K61: =InputSheetOp1!I136 -> 0 | L61: =InputSheetOp1!J136 -> 0 | M61: =InputSheetOp1!K136 -> 0 | N61: =InputSheetOp1!L136 -> 0 | O61: =InputSheetOp1!M136 -> 0 | P61: =InputSheetOp1!N136 -> 0 | Q61: =InputSheetOp1!O136 -> 0
A62: =[1]InputSheetOp1!D83 -> Add New | B62: =InputSheetOp1!I137 -> 0 | C62: =InputSheetOp1!J137 -> 0 | D62: =InputSheetOp1!K137 -> 0 | E62: =InputSheetOp1!L137 -> 0 | F62: =InputSheetOp1!M137 -> 0 | G62: =InputSheetOp1!N137 -> 0 | H62: =InputSheetOp1!O137 -> 0 | K62: =InputSheetOp1!I137 -> 0 | L62: =InputSheetOp1!J137 -> 0 | M62: =InputSheetOp1!K137 -> 0 | N62: =InputSheetOp1!L137 -> 0 | O62: =InputSheetOp1!M137 -> 0 | P62: =InputSheetOp1!N137 -> 0 | Q62: =InputSheetOp1!O137 -> 0
B64: Rise in Demand
B65: =[1]InputSheetOp1!$G$29 -> Total primary care consultations 2017 | C65: =[1]InputSheetOp1!$H$29 -> Total primary care consultations in future (1-5 years)
B66: =InputSheetOp1!$G$30 -> 1222257.6 | C66: =InputSheetOp1!$H$30 -> 1483676.179
B69: Costs
B70: =[1]InputSheetOp1!I122 -> Baseline | C70: =[1]InputSheetOp1!J122 -> Future - Do Nothing | D70: =[1]InputSheetOp1!K122 -> Scenario 1 | E70: =[1]InputSheetOp1!L122 -> Scenario 2 | F70: =[1]InputSheetOp1!M122 -> Scenario 3 | G70: =[1]InputSheetOp1!N122 -> Scenario 4 | H70: =[1]InputSheetOp1!O122 -> Scenario 5
A71: =[1]InputSheetOp1!H140 -> System Cost | B71: =InputSheetOp1!I140 -> 14320000 | C71: =InputSheetOp1!J140 -> 17382786.48 | D71: =InputSheetOp1!K140 -> 0 | E71: =InputSheetOp1!L140 -> 0 | F71: =InputSheetOp1!M140 -> 0 | G71: =InputSheetOp1!N140 -> 0 | H71: =InputSheetOp1!O140 -> 0
A72: =[1]InputSheetOp1!H141 -> Per head of population cost | B72: =InputSheetOp1!I141 -> 63.26653236 | C72: =InputSheetOp1!J141 -> 76.79808821 | D72: =InputSheetOp1!K141 -> 0 | E72: =InputSheetOp1!L141 -> 0 | F72: =InputSheetOp1!M141 -> 0 | G72: =InputSheetOp1!N141 -> 0 | H72: =InputSheetOp1!O141 -> 0

Sheet RecordSheet1
C1: Future - Do Nothing | D1: Scenario 1 | E1: Scenario 2 | F1: Scenario 3 | G1: Scenario 4 | H1: Scenario 5
A2: Non-Clinical | B2: Voluntary Sector | C2: 0
B3: Self Care | C3: 0
B4: Patient Led Group | C4: 0
B5: Social Prescribing | C5: 0
B6: Care Navigation | C6: 0
B7: Add New | C7: 0
B8: Add New | C8: 0
B9: Add New | C9: 0
A10: Consultation medium | B10: Face to Face | C10: 0.77
B11: e-consultation | C11: 0
B12: Telephone | C12: 0.2
B13: Group consultation | C13: 0
B14: Home Visit | C14: 0.03
B15: Email | C15: 0
B16: Add New | C16: 0
B17: Add New | C17: 0
A19: Role Type | B19: GP | C19: 0.7
B20: Nurse | C20: 0.27
B21: Consultant | C21: 0
B22: Pharmacist | C22: 0
B23: Dietician | C23: 0
B24: HCA | C24: 0.03
B25: Psychologist | C25: 0
B26: Physician Associate | C26: 0
B27: Physiotherapist | C27: 0
B28: Podiatrist | C28: 0
B29: DSN | C29: 0
B30: Add New | C30: 0
B31: Add New | C31: 0
B32: Add New | C32: 0
B33: Add New | C33: 0
A37: Input summary | B37: GP | C37: 150.5213354
B38: Nurse | C38: 54.62467818
B39: Consultant | C39: 0
B40: Pharmacist | C40: 0
B41: Dietician | C41: 0
B42: HCA | C42: 4.855526949
B43: Psychologist | C43: 0
B44: Physician Associate | C44: 0
B45: Physiotherapist | C45: 0
B46: Podiatrist | C46: 0
B47: DSN | C47: 0
B48: Add New | C48: 0
B49: Add New | C49: 0
B50: Add New | C50: 0
B51: Add New | C51: 0

Sheet InputSheetOp2
D2: Red cells CAN'T be amended by the user
D3: Orange cells CAN be amended by the user
D4: Yellow cells must equal 100%
C5: Hover your cursor over cells with a red triangle in top right corner for an explanation of its purpose
J18: Forecast Years (1-5) | K18: 5
C19: STP | D19: =IF(AND('Piv1'!$B$2="(All)",'Piv1'!$B$1="(All)"),"(All)",'Piv1'!$M$5) -> NWL | G19: Borough population | H19: ='Piv1'!$A$5 -> 226344 | J19: Population growth | K19: =(1+(('Piv1'!$J$5/'Piv1'!$A$5)^(1/5)-1))^K18-1 -> 0.04812224914 | M19: 1 - 5 year population | N19: =H19*(1+K19) -> 237236.1824
G20: Population override | J20: Population growth override | M20: 1 - 5 year population | N20: =IF(OR(K20="",K20=0),(H20*(1+K19)),(H20*(1+K20))) -> 0
C21: Borough | D21: ='Piv1'!$B$2 -> Hammersmith and Fulham
C27: Option 2
D29: Activity Proportion | E29: Consultations per person per year | F29: % growth in consultations per person per year | G29: Total primary care consultations 2017 | H29: Total primary care consultations +X years
D30: 0.12 | E30: 8 | F30: 0.0298 | G30: =IF(H20>0,E30*H20*D30,E30*H19*D30) -> 217290.24 | H30: =IF(N20>0,N20*E30*(1+F30)^$K$18*D30,N19*E30*(1+F30)^$K$18*D30) -> 263764.654
D40: Voluntary Sector | E40: 0
D41: Self Care | E41: 0.5
D42: Patient Led Group | E42: 0
D43: Social Prescribing | E43: 0
D44: Care Navigation | E44: 0
D45: Add New | E45: 0
D46: Add New | E46: 0
D47: Add New | E47: 0
F53: Option 2
F54: Focussed activity
F55: Diagnostic | G55: Education | H55: Maintenance | I55: Treatment | J55: Medicines Optimisation | K55: Risk Management | L55: - | M55: -
F56: 0.05 | G56: 0.25 | H56: 0.25 | I56: 0.25 | J56: 0.1 | K56: 0.1 | L56: 0 | M56: 0 | N56: =SUM(F56:M56) -> 1
D57: Clinical Time per consultation(mins)
B58: Consultation medium | C58: Face to Face | D58: 10 | F58: 0.9 | G58: 0.9 | H58: 0.9 | I58: 0.9 | J58: 0.9 | K58: 0.9 | L58: 0 | M58: 0
C59: e-consultation | D59: 10 | F59: 0 | G59: 0 | H59: 0 | I59: 0 | J59: 0 | K59: 0 | L59: 0 | M59: 0
C60: Telephone | D60: 5 | F60: 0.1 | G60: 0.1 | H60: 0.1 | I60: 0.1 | J60: 0.1 | K60: 0.1 | L60: 0 | M60: 0
C61: Group consultation | D61: 10 | F61: 0 | G61: 0 | H61: 0 | I61: 0 | J61: 0 | K61: 0 | L61: 0 | M61: 0
C62: Home Visit | D62: 20 | F62: 0 | G62: 0 | H62: 0 | I62: 0 | J62: 0 | K62: 0 | L62: 0 | M62: 0
C63: Email | D63: 5 | F63: 0 | G63: 0 | H63: 0 | I63: 0 | J63: 0 | K63: 0 | L63: 0 | M63: 0
C64: Add New | D64: 5 | F64: 0 | G64: 0 | H64: 0 | I64: 0 | J64: 0 | K64: 0 | L64: 0 | M64: 0
C65: Add New | D65: 0 | F65: 0 | G65: 0 | H65: 0 | I65: 0 | J65: 0 | K65: 0 | L65: 0 | M65: 0
F66: =SUM(F58:F65) -> 1 | G66: 1 | H66: 1 | I66: 1 | J66: 1 | K66: 1 | L66: 0 | M66: 0
C68: Role Type | D68: GP | F68: 0.55 | G68: 0.1 | H68: 0.4 | I68: 0.5 | J68: 0.45 | K68: 0.5 | L68: 0 | M68: 0
D69: Nurse | F69: 0.35 | G69: 0.35 | H69: 0.5 | I69: 0.4 | J69: 0.35 | K69: 0.5 | L69: 0 | M69: 0
D70: Consultant | F70: 0 | G70: 0 | H70: 0 | I70: 0 | J70: 0 | K70: 0 | L70: 0 | M70: 0
D71: Pharmacist | F71: 0 | G71: 0 | H71: 0 | I71: 0 | J71: 0.1 | K71: 0 | L71: 0 | M71: 0
D72: Dietician | F72: 0 | G72: 0 | H72: 0 | I72: 0 | J72: 0 | K72: 0 | L72: 0 | M72: 0
D73: HCA | F73: 0.1 | G73: 0.1 | H73: 0.1 | I73: 0.1 | J73: 0.1 | K73: 0 | L73: 0 | M73: 0
D74: Psychologist | F74: 0 | G74: 0 | H74: 0 | I74: 0 | J74: 0 | K74: 0 | L74: 0 | M74: 0
D75: Physician Associate | F75: 0 | G75: 0 | H75: 0 | I75: 0 | J75: 0 | K75: 0 | L75: 0 | M75: 0
D76: Physiotherapist | F76: 0 | G76: 0 | H76: 0 | I76: 0 | J76: 0 | K76: 0 | L76: 0 | M76: 0
D77: Podiatrist | F77: 0 | G77: 0 | H77: 0 | I77: 0 | J77: 0 | K77: 0 | L77: 0 | M77: 0
D78: DSN | F78: 0 | G78: 0.45 | H78: 0 | I78: 0 | J78: 0 | K78: 0 | L78: 0 | M78: 0
D79: Add New | F79: 0 | G79: 0 | H79: 0 | I79: 0 | J79: 0 | K79: 0 | L79: 0 | M79: 0
D80: Add New | F80: 0 | G80: 0 | H80: 0 | I80: 0 | J80: 0 | K80: 0 | L80: 0 | M80: 0
D81: Add New | F81: 0 | G81: 0 | H81: 0 | I81: 0 | J81: 0 | K81: 0 | L81: 0 | M81: 0
D82: Add New | F82: 0 | G82: 0 | H82: 0 | I82: 0 | J82: 0 | K82: 0 | L82: 0 | M82: 0
F83: =SUM(F68:F82) -> 1 | G83: =SUM(G68:G82) -> 1 | H83: 1 | I83: 1 | J83: 1 | K83: 1 | L83: 0 | M83: 0
D94: System Cost | H94: Model Demand
D95: (£) Per FTE P/A | F95: Non_Clinical_Time | H95: Model FTE required to meet demand in general activity - Guide | J95: Baseline
C96: GP | D96: 100000 | F96: 0.25 | H96: =IFERROR((((((1-SUM($E$40:$E$47))*$G$30)*($D$58*$F$58+$D$59*$F$59+$D$60*$F$60+$D$61*$F$61+$D$62*$F$62+$D$63*$F$63+$D$64*$F$64+$D$65*$F$65))/60*F68/Table!Z31*F$56)+((((1-SUM($E$40:$E$47))*$G$30)*($D$58*$G$58+$D$59*$G$59+$D$60*$G$60+$D$61*$G$61+$D$62*$G$62+$D$63*$G$63+$D$64*$G$64+$D$65*$G$65))/60*G68/Table!Z31*G$56)+((((1-SUM($E$40:$E$47))*$G$30)*($D$58*$H$58+$D$59*$H$59+$D$60*$H$60+$D$61*$H$61+$D$62*$H$62+$D$63*$H$63+$D$64*$H$64+$D$65*$H$65))/60*H68/Table!Z31*H$56)+((((1-SUM($E$40:$E$47))*$G$30)*($D$58*$I$58+$D$59*$I$59+$D$60*$I$60+$D$61*$I$61+$D$62*$I$62+$D$63*$I$63+$D$64*$I$64+$D$65*$I$65))/60*I68/Table!Z31*I$56)+((((1-SUM($E$40:$E$47))*$G$30)*($D$58*$J$58+$D$59*$J$59+$D$60*$J$60+$D$61*$J$61+$D$62*$J$62+$D$63*$J$63+$D$64*$J$64+$D$65*$J$65))/60*J68/Table!Z31*J$56)+((((1-SUM($E$40:$E$47))*$G$30)*($D$58*$K$58+$D$59*$K$59+$D$60*$K$60+$D$61*$K$61+$D$62*$K$62+$D$63*$K$63+$D$64*$K$64+$D$65*$K$65))/60*K68/Table!Z31*K$56)+((((1-SUM($E$40:$E$47))*$G$30)*($D$58*$L$58+$D$59*$L$59+$D$60*$L$60+$D$61*$L$61+$D$62*$L$62+$D$63*$L$63+$D$64*$L$64+$D$65*$L$65))/60*L68/Table!Z31*L$56)+((((1-SUM($E$40:$E$47))*$G$30)*($D$58*$M$58+$D$59*$M$59+$D$60*$M$60+$D$61*$M$61+$D$62*$M$62+$D$63*$M$63+$D$64*$M$64+$D$65*$M$65))/60*M68/Table!Z31*M$56)),0) -> 5.298438152 | J96: 10.6 | K96: =IF(OR(J96="",J96=0),H96,J96) -> 10.6
C97: Nurse | D97: 40000 | F97: 0.25 | H97: =IFERROR((((((1-SUM($E$40:$E$47))*$G$30)*($D$58*$F$58+$D$59*$F$59+$D$60*$F$60+$D$61*$F$61+$D$62*$F$62+$D$63*$F$63+$D$64*$F$64+$D$65*$F$65))/60*F69/Table!Z32*F$56)+((((1-SUM($E$40:$E$47))*$G$30)*($D$58*$G$58+$D$59*$G$59+$D$60*$G$60+$D$61*$G$61+$D$62*$G$62+$D$63*$G$63+$D$64*$G$64+$D$65*$G$65))/60*G69/Table!Z32*G$56)+((((1-SUM($E$40:$E$47))*$G$30)*($D$58*$H$58+$D$59*$H$59+$D$60*$H$60+$D$61*$H$61+$D$62*$H$62+$D$63*$H$63+$D$64*$H$64+$D$65*$H$65))/60*H69/Table!Z32*H$56)+((((1-SUM($E$40:$E$47))*$G$30)*($D$58*$I$58+$D$59*$I$59+$D$60*$I$60+$D$61*$I$61+$D$62*$I$62+$D$63*$I$63+$D$64*$I$64+$D$65*$I$65))/60*I69/Table!Z32*I$56)+((((1-SUM($E$40:$E$47))*$G$30)*($D$58*$J$58+$D$59*$J$59+$D$60*$J$60+$D$61*$J$61+$D$62*$J$62+$D$63*$J$63+$D$64*$J$64+$D$65*$J$65))/60*J69/Table!Z32*J$56)+((((1-SUM($E$40:$E$47))*$G$30)*($D$58*$K$58+$D$59*$K$59+$D$60*$K$60+$D$61*$K$61+$D$62*$K$62+$D$63*$K$63+$D$64*$K$64+$D$65*$K$65))/60*K69/Table!Z32*K$56)+((((1-SUM($E$40:$E$47))*$G$30)*($D$58*$L$58+$D$59*$L$59+$D$60*$L$60+$D$61*$L$61+$D$62*$L$62+$D$63*$L$63+$D$64*$L$64+$D$65*$L$65))/60*L69/Table!Z32*L$56)+((((1-SUM($E$40:$E$47))*$G$30)*($D$58*$M$58+$D$59*$M$59+$D$60*$M$60+$D$61*$M$61+$D$62*$M$62+$D$63*$M$63+$D$64*$M$64+$D$65*$M$65))/60*M69/Table!Z32*M$56)),0) -> 5.902957941 | J97: 11.8 | K97: =IF(OR(J97="",J97=0),H97,J97) -> 11.8
C98: Consultant | D98: 120000 | F98: 0.15 | H98: =IFERROR((((((1-SUM($E$40:$E$47))*$G$30)*($D$58*$F$58+$D$59*$F$59+$D$60*$F$60+$D$61*$F$61+$D$62*$F$62+$D$63*$F$63+$D$64*$F$64+$D$65*$F$65))/60*F70/Table!Z33*F$56)+((((1-SUM($E$40:$E$47))*$G$30)*($D$58*$G$58+$D$59*$G$59+$D$60*$G$60+$D$61*$G$61+$D$62*$G$62+$D$63*$G$63+$D$64*$G$64+$D$65*$G$65))/60*G70/Table!Z33*G$56)+((((1-SUM($E$40:$E$47))*$G$30)*($D$58*$H$58+$D$59*$H$59+$D$60*$H$60+$D$61*$H$61+$D$62*$H$62+$D$63*$H$63+$D$64*$H$64+$D$65*$H$65))/60*H70/Table!Z33*H$56)+((((1-SUM($E$40:$E$47))*$G$30)*($D$58*$I$58+$D$59*$I$59+$D$60*$I$60+$D$61*$I$61+$D$62*$I$62+$D$63*$I$63+$D$64*$I$64+$D$65*$I$65))/60*I70/Table!Z33*I$56)+((((1-SUM($E$40:$E$47))*$G$30)*($D$58*$J$58+$D$59*$J$59+$D$60*$J$60+$D$61*$J$61+$D$62*$J$62+$D$63*$J$63+$D$64*$J$64+$D$65*$J$65))/60*J70/Table!Z33*J$56)+((((1-SUM($E$40:$E$47))*$G$30)*($D$58*$K$58+$D$59*$K$59+$D$60*$K$60+$D$61*$K$61+$D$62*$K$62+$D$63*$K$63+$D$64*$K$64+$D$65*$K$65))/60*K70/Table!Z33*K$56)+((((1-SUM($E$40:$E$47))*$G$30)*($D$58*$L$58+$D$59*$L$59+$D$60*$L$60+$D$61*$L$61+$D$62*$L$62+$D$63*$L$63+$D$64*$L$64+$D$65*$L$65))/60*L70/Table!Z33*L$56)+((((1-SUM($E$40:$E$47))*$G$30)*($D$58*$M$58+$D$59*$M$59+$D$60*$M$60+$D$61*$M$61+$D$62*$M$62+$D$63*$M$63+$D$64*$M$64+$D$65*$M$65))/60*M70/Table!Z33*M$56)),0) -> 0 | K98: 0
C99: Pharmacist | D99: 50000 | F99: 0.09 | H99: =IFERROR((((((1-SUM($E$40:$E$47))*$G$30)*($D$58*$F$58+$D$59*$F$59+$D$60*$F$60+$D$61*$F$61+$D$62*$F$62+$D$63*$F$63+$D$64*$F$64+$D$65*$F$65))/60*F71/Table!Z34*F$56)+((((1-SUM($E$40:$E$47))*$G$30)*($D$58*$G$58+$D$59*$G$59+$D$60*$G$60+$D$61*$G$61+$D$62*$G$62+$D$63*$G$63+$D$64*$G$64+$D$65*$G$65))/60*G71/Table!Z34*G$56)+((((1-SUM($E$40:$E$47))*$G$30)*($D$58*$H$58+$D$59*$H$59+$D$60*$H$60+$D$61*$H$61+$D$62*$H$62+$D$63*$H$63+$D$64*$H$64+$D$65*$H$65))/60*H71/Table!Z34*H$56)+((((1-SUM($E$40:$E$47))*$G$30)*($D$58*$I$58+$D$59*$I$59+$D$60*$I$60+$D$61*$I$61+$D$62*$I$62+$D$63*$I$63+$D$64*$I$64+$D$65*$I$65))/60*I71/Table!Z34*I$56)+((((1-SUM($E$40:$E$47))*$G$30)*($D$58*$J$58+$D$59*$J$59+$D$60*$J$60+$D$61*$J$61+$D$62*$J$62+$D$63*$J$63+$D$64*$J$64+$D$65*$J$65))/60*J71/Table!Z34*J$56)+((((1-SUM($E$40:$E$47))*$G$30)*($D$58*$K$58+$D$59*$K$59+$D$60*$K$60+$D$61*$K$61+$D$62*$K$62+$D$63*$K$63+$D$64*$K$64+$D$65*$K$65))/60*K71/Table!Z34*K$56)+((((1-SUM($E$40:$E$47))*$G$30)*($D$58*$L$58+$D$59*$L$59+$D$60*$L$60+$D$61*$L$61+$D$62*$L$62+$D$63*$L$63+$D$64*$L$64+$D$65*$L$65))/60*L71/Table!Z34*L$56)+((((1-SUM($E$40:$E$47))*$G$30)*($D$58*$M$58+$D$59*$M$59+$D$60*$M$60+$D$61*$M$61+$D$62*$M$62+$D$63*$M$63+$D$64*$M$64+$D$65*$M$65))/60*M71/Table!Z34*M$56)),0) -> 0.1172307283 | J99: 0.2 | K99: 0.2
C100: Dietician | D100: 45000 | F100: 0.07 | H100: =IFERROR((((((1-SUM($E$40:$E$47))*$G$30)*($D$58*$F$58+$D$59*$F$59+$D$60*$F$60+$D$61*$F$61+$D$62*$F$62+$D$63*$F$63+$D$64*$F$64+$D$65*$F$65))/60*F72/Table!Z35*F$56)+((((1-SUM($E$40:$E$47))*$G$30)*($D$58*$G$58+$D$59*$G$59+$D$60*$G$60+$D$61*$G$61+$D$62*$G$62+$D$63*$G$63+$D$64*$G$64+$D$65*$G$65))/60*G72/Table!Z35*G$56)+((((1-SUM($E$40:$E$47))*$G$30)*($D$58*$H$58+$D$59*$H$59+$D$60*$H$60+$D$61*$H$61+$D$62*$H$62+$D$63*$H$63+$D$64*$H$64+$D$65*$H$65))/60*H72/Table!Z35*H$56)+((((1-SUM($E$40:$E$47))*$G$30)*($D$58*$I$58+$D$59*$I$59+$D$60*$I$60+$D$61*$I$61+$D$62*$I$62+$D$63*$I$63+$D$64*$I$64+$D$65*$I$65))/60*I72/Table!Z35*I$56)+((((1-SUM($E$40:$E$47))*$G$30)*($D$58*$J$58+$D$59*$J$59+$D$60*$J$60+$D$61*$J$61+$D$62*$J$62+$D$63*$J$63+$D$64*$J$64+$D$65*$J$65))/60*J72/Table!Z35*J$56)+((((1-SUM($E$40:$E$47))*$G$30)*($D$58*$K$58+$D$59*$K$59+$D$60*$K$60+$D$61*$K$61+$D$62*$K$62+$D$63*$K$63+$D$64*$K$64+$D$65*$K$65))/60*K72/Table!Z35*K$56)+((((1-SUM($E$40:$E$47))*$G$30)*($D$58*$L$58+$D$59*$L$59+$D$60*$L$60+$D$61*$L$61+$D$62*$L$62+$D$63*$L$63+$D$64*$L$64+$D$65*$L$65))/60*L72/Table!Z35*L$56)+((((1-SUM($E$40:$E$47))*$G$30)*($D$58*$M$58+$D$59*$M$59+$D$60*$M$60+$D$61*$M$61+$D$62*$M$62+$D$63*$M$63+$D$64*$M$64+$D$65*$M$65))/60*M72/Table!Z35*M$56)),0) -> 0 | K100: 0
C101: HCA | D101: 30000 | F101: 0.06 | H101: =IFERROR((((((1-SUM($E$40:$E$47))*$G$30)*($D$58*$F$58+$D$59*$F$59+$D$60*$F$60+$D$61*$F$61+$D$62*$F$62+$D$63*$F$63+$D$64*$F$64+$D$65*$F$65))/60*F73/Table!Z36*F$56)+((((1-SUM($E$40:$E$47))*$G$30)*($D$58*$G$58+$D$59*$G$59+$D$60*$G$60+$D$61*$G$61+$D$62*$G$62+$D$63*$G$63+$D$64*$G$64+$D$65*$G$65))/60*G73/Table!Z36*G$56)+((((1-SUM($E$40:$E$47))*$G$30)*($D$58*$H$58+$D$59*$H$59+$D$60*$H$60+$D$61*$H$61+$D$62*$H$62+$D$63*$H$63+$D$64*$H$64+$D$65*$H$65))/60*H73/Table!Z36*H$56)+((((1-SUM($E$40:$E$47))*$G$30)*($D$58*$I$58+$D$59*$I$59+$D$60*$I$60+$D$61*$I$61+$D$62*$I$62+$D$63*$I$63+$D$64*$I$64+$D$65*$I$65))/60*I73/Table!Z36*I$56)+((((1-SUM($E$40:$E$47))*$G$30)*($D$58*$J$58+$D$59*$J$59+$D$60*$J$60+$D$61*$J$61+$D$62*$J$62+$D$63*$J$63+$D$64*$J$64+$D$65*$J$65))/60*J73/Table!Z36*J$56)+((((1-SUM($E$40:$E$47))*$G$30)*($D$58*$K$58+$D$59*$K$59+$D$60*$K$60+$D$61*$K$61+$D$62*$K$62+$D$63*$K$63+$D$64*$K$64+$D$65*$K$65))/60*K73/Table!Z36*K$56)+((((1-SUM($E$40:$E$47))*$G$30)*($D$58*$L$58+$D$59*$L$59+$D$60*$L$60+$D$61*$L$61+$D$62*$L$62+$D$63*$L$63+$D$64*$L$64+$D$65*$L$65))/60*L73/Table!Z36*L$56)+((((1-SUM($E$40:$E$47))*$G$30)*($D$58*$M$58+$D$59*$M$59+$D$60*$M$60+$D$61*$M$61+$D$62*$M$62+$D$63*$M$63+$D$64*$M$64+$D$65*$M$65))/60*M73/Table!Z36*M$56)),0) -> 1.021403899 | J101: 2 | K101: 2
C102: Psychologist | D102: 50000 | F102: 0.08 | H102: =IFERROR((((((1-SUM($E$40:$E$47))*$G$30)*($D$58*$F$58+$D$59*$F$59+$D$60*$F$60+$D$61*$F$61+$D$62*$F$62+$D$63*$F$63+$D$64*$F$64+$D$65*$F$65))/60*F74/Table!Z37*F$56)+((((1-SUM($E$40:$E$47))*$G$30)*($D$58*$G$58+$D$59*$G$59+$D$60*$G$60+$D$61*$G$61+$D$62*$G$62+$D$63*$G$63+$D$64*$G$64+$D$65*$G$65))/60*G74/Table!Z37*G$56)+((((1-SUM($E$40:$E$47))*$G$30)*($D$58*$H$58+$D$59*$H$59+$D$60*$H$60+$D$61*$H$61+$D$62*$H$62+$D$63*$H$63+$D$64*$H$64+$D$65*$H$65))/60*H74/Table!Z37*H$56)+((((1-SUM($E$40:$E$47))*$G$30)*($D$58*$I$58+$D$59*$I$59+$D$60*$I$60+$D$61*$I$61+$D$62*$I$62+$D$63*$I$63+$D$64*$I$64+$D$65*$I$65))/60*I74/Table!Z37*I$56)+((((1-SUM($E$40:$E$47))*$G$30)*($D$58*$J$58+$D$59*$J$59+$D$60*$J$60+$D$61*$J$61+$D$62*$J$62+$D$63*$J$63+$D$64*$J$64+$D$65*$J$65))/60*J74/Table!Z37*J$56)+((((1-SUM($E$40:$E$47))*$G$30)*($D$58*$K$58+$D$59*$K$59+$D$60*$K$60+$D$61*$K$61+$D$62*$K$62+$D$63*$K$63+$D$64*$K$64+$D$65*$K$65))/60*K74/Table!Z37*K$56)+((((1-SUM($E$40:$E$47))*$G$30)*($D$58*$L$58+$D$59*$L$59+$D$60*$L$60+$D$61*$L$61+$D$62*$L$62+$D$63*$L$63+$D$64*$L$64+$D$65*$L$65))/60*L74/Table!Z37*L$56)+((((1-SUM($E$40:$E$47))*$G$30)*($D$58*$M$58+$D$59*$M$59+$D$60*$M$60+$D$61*$M$61+$D$62*$M$62+$D$63*$M$63+$D$64*$M$64+$D$65*$M$65))/60*M74/Table!Z37*M$56)),0) -> 0 | K102: 0
C103: Physician Associate | D103: 40000 | F103: 0.09 | H103: =IFERROR((((((1-SUM($E$40:$E$47))*$G$30)*($D$58*$F$58+$D$59*$F$59+$D$60*$F$60+$D$61*$F$61+$D$62*$F$62+$D$63*$F$63+$D$64*$F$64+$D$65*$F$65))/60*F75/Table!Z38*F$56)+((((1-SUM($E$40:$E$47))*$G$30)*($D$58*$G$58+$D$59*$G$59+$D$60*$G$60+$D$61*$G$61+$D$62*$G$62+$D$63*$G$63+$D$64*$G$64+$D$65*$G$65))/60*G75/Table!Z38*G$56)+((((1-SUM($E$40:$E$47))*$G$30)*($D$58*$H$58+$D$59*$H$59+$D$60*$H$60+$D$61*$H$61+$D$62*$H$62+$D$63*$H$63+$D$64*$H$64+$D$65*$H$65))/60*H75/Table!Z38*H$56)+((((1-SUM($E$40:$E$47))*$G$30)*($D$58*$I$58+$D$59*$I$59+$D$60*$I$60+$D$61*$I$61+$D$62*$I$62+$D$63*$I$63+$D$64*$I$64+$D$65*$I$65))/60*I75/Table!Z38*I$56)+((((1-SUM($E$40:$E$47))*$G$30)*($D$58*$J$58+$D$59*$J$59+$D$60*$J$60+$D$61*$J$61+$D$62*$J$62+$D$63*$J$63+$D$64*$J$64+$D$65*$J$65))/60*J75/Table!Z38*J$56)+((((1-SUM($E$40:$E$47))*$G$30)*($D$58*$K$58+$D$59*$K$59+$D$60*$K$60+$D$61*$K$61+$D$62*$K$62+$D$63*$K$63+$D$64*$K$64+$D$65*$K$65))/60*K75/Table!Z38*K$56)+((((1-SUM($E$40:$E$47))*$G$30)*($D$58*$L$58+$D$59*$L$59+$D$60*$L$60+$D$61*$L$61+$D$62*$L$62+$D$63*$L$63+$D$64*$L$64+$D$65*$L$65))/60*L75/Table!Z38*L$56)+((((1-SUM($E$40:$E$47))*$G$30)*($D$58*$M$58+$D$59*$M$59+$D$60*$M$60+$D$61*$M$61+$D$62*$M$62+$D$63*$M$63+$D$64*$M$64+$D$65*$M$65))/60*M75/Table!Z38*M$56)),0) -> 0 | K103: 0
C104: Physiotherapist | D104: 40000 | F104: 0.1 | H104: =IFERROR((((((1-SUM($E$40:$E$47))*$G$30)*($D$58*$F$58+$D$59*$F$59+$D$60*$F$60+$D$61*$F$61+$D$62*$F$62+$D$63*$F$63+$D$64*$F$64+$D$65*$F$65))/60*F76/Table!Z39*F$56)+((((1-SUM($E$40:$E$47))*$G$30)*($D$58*$G$58+$D$59*$G$59+$D$60*$G$60+$D$61*$G$61+$D$62*$G$62+$D$63*$G$63+$D$64*$G$64+$D$65*$G$65))/60*G76/Table!Z39*G$56)+((((1-SUM($E$40:$E$47))*$G$30)*($D$58*$H$58+$D$59*$H$59+$D$60*$H$60+$D$61*$H$61+$D$62*$H$62+$D$63*$H$63+$D$64*$H$64+$D$65*$H$65))/60*H76/Table!Z39*H$56)+((((1-SUM($E$40:$E$47))*$G$30)*($D$58*$I$58+$D$59*$I$59+$D$60*$I$60+$D$61*$I$61+$D$62*$I$62+$D$63*$I$63+$D$64*$I$64+$D$65*$I$65))/60*I76/Table!Z39*I$56)+((((1-SUM($E$40:$E$47))*$G$30)*($D$58*$J$58+$D$59*$J$59+$D$60*$J$60+$D$61*$J$61+$D$62*$J$62+$D$63*$J$63+$D$64*$J$64+$D$65*$J$65))/60*J76/Table!Z39*J$56)+((((1-SUM($E$40:$E$47))*$G$30)*($D$58*$K$58+$D$59*$K$59+$D$60*$K$60+$D$61*$K$61+$D$62*$K$62+$D$63*$K$63+$D$64*$K$64+$D$65*$K$65))/60*K76/Table!Z39*K$56)+((((1-SUM($E$40:$E$47))*$G$30)*($D$58*$L$58+$D$59*$L$59+$D$60*$L$60+$D$61*$L$61+$D$62*$L$62+$D$63*$L$63+$D$64*$L$64+$D$65*$L$65))/60*L76/Table!Z39*L$56)+((((1-SUM($E$40:$E$47))*$G$30)*($D$58*$M$58+$D$59*$M$59+$D$60*$M$60+$D$61*$M$61+$D$62*$M$62+$D$63*$M$63+$D$64*$M$64+$D$65*$M$65))/60*M76/Table!Z39*M$56)),0) -> 0 | K104: 0
C105: Podiatrist | D105: 40000 | F105: 0.11 | H105: =IFERROR((((((1-SUM($E$40:$E$47))*$G$30)*($D$58*$F$58+$D$59*$F$59+$D$60*$F$60+$D$61*$F$61+$D$62*$F$62+$D$63*$F$63+$D$64*$F$64+$D$65*$F$65))/60*F77/Table!Z40*F$56)+((((1-SUM($E$40:$E$47))*$G$30)*($D$58*$G$58+$D$59*$G$59+$D$60*$G$60+$D$61*$G$61+$D$62*$G$62+$D$63*$G$63+$D$64*$G$64+$D$65*$G$65))/60*G77/Table!Z40*G$56)+((((1-SUM($E$40:$E$47))*$G$30)*($D$58*$H$58+$D$59*$H$59+$D$60*$H$60+$D$61*$H$61+$D$62*$H$62+$D$63*$H$63+$D$64*$H$64+$D$65*$H$65))/60*H77/Table!Z40*H$56)+((((1-SUM($E$40:$E$47))*$G$30)*($D$58*$I$58+$D$59*$I$59+$D$60*$I$60+$D$61*$I$61+$D$62*$I$62+$D$63*$I$63+$D$64*$I$64+$D$65*$I$65))/60*I77/Table!Z40*I$56)+((((1-SUM($E$40:$E$47))*$G$30)*($D$58*$J$58+$D$59*$J$59+$D$60*$J$60+$D$61*$J$61+$D$62*$J$62+$D$63*$J$63+$D$64*$J$64+$D$65*$J$65))/60*J77/Table!Z40*J$56)+((((1-SUM($E$40:$E$47))*$G$30)*($D$58*$K$58+$D$59*$K$59+$D$60*$K$60+$D$61*$K$61+$D$62*$K$62+$D$63*$K$63+$D$64*$K$64+$D$65*$K$65))/60*K77/Table!Z40*K$56)+((((1-SUM($E$40:$E$47))*$G$30)*($D$58*$L$58+$D$59*$L$59+$D$60*$L$60+$D$61*$L$61+$D$62*$L$62+$D$63*$L$63+$D$64*$L$64+$D$65*$L$65))/60*L77/Table!Z40*L$56)+((((1-SUM($E$40:$E$47))*$G$30)*($D$58*$M$58+$D$59*$M$59+$D$60*$M$60+$D$61*$M$61+$D$62*$M$62+$D$63*$M$63+$D$64*$M$64+$D$65*$M$65))/60*M77/Table!Z40*M$56)),0) -> 0 | K105: 0
C106: DSN | D106: 50000 | F106: 0.115 | H106: =IFERROR((((((1-SUM($E$40:$E$47))*$G$30)*($D$58*$F$58+$D$59*$F$59+$D$60*$F$60+$D$61*$F$61+$D$62*$F$62+$D$63*$F$63+$D$64*$F$64+$D$65*$F$65))/60*F78/Table!Z41*F$56)+((((1-SUM($E$40:$E$47))*$G$30)*($D$58*$G$58+$D$59*$G$59+$D$60*$G$60+$D$61*$G$61+$D$62*$G$62+$D$63*$G$63+$D$64*$G$64+$D$65*$G$65))/60*G78/Table!Z41*G$56)+((((1-SUM($E$40:$E$47))*$G$30)*($D$58*$H$58+$D$59*$H$59+$D$60*$H$60+$D$61*$H$61+$D$62*$H$62+$D$63*$H$63+$D$64*$H$64+$D$65*$H$65))/60*H78/Table!Z41*H$56)+((((1-SUM($E$40:$E$47))*$G$30)*($D$58*$I$58+$D$59*$I$59+$D$60*$I$60+$D$61*$I$61+$D$62*$I$62+$D$63*$I$63+$D$64*$I$64+$D$65*$I$65))/60*I78/Table!Z41*I$56)+((((1-SUM($E$40:$E$47))*$G$30)*($D$58*$J$58+$D$59*$J$59+$D$60*$J$60+$D$61*$J$61+$D$62*$J$62+$D$63*$J$63+$D$64*$J$64+$D$65*$J$65))/60*J78/Table!Z41*J$56)+((((1-SUM($E$40:$E$47))*$G$30)*($D$58*$K$58+$D$59*$K$59+$D$60*$K$60+$D$61*$K$61+$D$62*$K$62+$D$63*$K$63+$D$64*$K$64+$D$65*$K$65))/60*K78/Table!Z41*K$56)+((((1-SUM($E$40:$E$47))*$G$30)*($D$58*$L$58+$D$59*$L$59+$D$60*$L$60+$D$61*$L$61+$D$62*$L$62+$D$63*$L$63+$D$64*$L$64+$D$65*$L$65))/60*L78/Table!Z41*L$56)+((((1-SUM($E$40:$E$47))*$G$30)*($D$58*$M$58+$D$59*$M$59+$D$60*$M$60+$D$61*$M$61+$D$62*$M$62+$D$63*$M$63+$D$64*$M$64+$D$65*$M$65))/60*M78/Table!Z41*M$56)),0) -> 1.356101222 | J106: 3 | K106: 3
C107: Add New | F107: 0 | H107: =IFERROR((((((1-SUM($E$40:$E$47))*$G$30)*($D$58*$F$58+$D$59*$F$59+$D$60*$F$60+$D$61*$F$61+$D$62*$F$62+$D$63*$F$63+$D$64*$F$64+$D$65*$F$65))/60*F79/Table!Z42*F$56)+((((1-SUM($E$40:$E$47))*$G$30)*($D$58*$G$58+$D$59*$G$59+$D$60*$G$60+$D$61*$G$61+$D$62*$G$62+$D$63*$G$63+$D$64*$G$64+$D$65*$G$65))/60*G79/Table!Z42*G$56)+((((1-SUM($E$40:$E$47))*$G$30)*($D$58*$H$58+$D$59*$H$59+$D$60*$H$60+$D$61*$H$61+$D$62*$H$62+$D$63*$H$63+$D$64*$H$64+$D$65*$H$65))/60*H79/Table!Z42*H$56)+((((1-SUM($E$40:$E$47))*$G$30)*($D$58*$I$58+$D$59*$I$59+$D$60*$I$60+$D$61*$I$61+$D$62*$I$62+$D$63*$I$63+$D$64*$I$64+$D$65*$I$65))/60*I79/Table!Z42*I$56)+((((1-SUM($E$40:$E$47))*$G$30)*($D$58*$J$58+$D$59*$J$59+$D$60*$J$60+$D$61*$J$61+$D$62*$J$62+$D$63*$J$63+$D$64*$J$64+$D$65*$J$65))/60*J79/Table!Z42*J$56)+((((1-SUM($E$40:$E$47))*$G$30)*($D$58*$K$58+$D$59*$K$59+$D$60*$K$60+$D$61*$K$61+$D$62*$K$62+$D$63*$K$63+$D$64*$K$64+$D$65*$K$65))/60*K79/Table!Z42*K$56)+((((1-SUM($E$40:$E$47))*$G$30)*($D$58*$L$58+$D$59*$L$59+$D$60*$L$60+$D$61*$L$61+$D$62*$L$62+$D$63*$L$63+$D$64*$L$64+$D$65*$L$65))/60*L79/Table!Z42*L$56)+((((1-SUM($E$40:$E$47))*$G$30)*($D$58*$M$58+$D$59*$M$59+$D$60*$M$60+$D$61*$M$61+$D$62*$M$62+$D$63*$M$63+$D$64*$M$64+$D$65*$M$65))/60*M79/Table!Z42*M$56)),0) -> 0 | K107: 0
C108: Add New | F108: 0 | H108: =IFERROR((((((1-SUM($E$40:$E$47))*$G$30)*($D$58*$F$58+$D$59*$F$59+$D$60*$F$60+$D$61*$F$61+$D$62*$F$62+$D$63*$F$63+$D$64*$F$64+$D$65*$F$65))/60*F80/Table!Z43*F$56)+((((1-SUM($E$40:$E$47))*$G$30)*($D$58*$G$58+$D$59*$G$59+$D$60*$G$60+$D$61*$G$61+$D$62*$G$62+$D$63*$G$63+$D$64*$G$64+$D$65*$G$65))/60*G80/Table!Z43*G$56)+((((1-SUM($E$40:$E$47))*$G$30)*($D$58*$H$58+$D$59*$H$59+$D$60*$H$60+$D$61*$H$61+$D$62*$H$62+$D$63*$H$63+$D$64*$H$64+$D$65*$H$65))/60*H80/Table!Z43*H$56)+((((1-SUM($E$40:$E$47))*$G$30)*($D$58*$I$58+$D$59*$I$59+$D$60*$I$60+$D$61*$I$61+$D$62*$I$62+$D$63*$I$63+$D$64*$I$64+$D$65*$I$65))/60*I80/Table!Z43*I$56)+((((1-SUM($E$40:$E$47))*$G$30)*($D$58*$J$58+$D$59*$J$59+$D$60*$J$60+$D$61*$J$61+$D$62*$J$62+$D$63*$J$63+$D$64*$J$64+$D$65*$J$65))/60*J80/Table!Z43*J$56)+((((1-SUM($E$40:$E$47))*$G$30)*($D$58*$K$58+$D$59*$K$59+$D$60*$K$60+$D$61*$K$61+$D$62*$K$62+$D$63*$K$63+$D$64*$K$64+$D$65*$K$65))/60*K80/Table!Z43*K$56)+((((1-SUM($E$40:$E$47))*$G$30)*($D$58*$L$58+$D$59*$L$59+$D$60*$L$60+$D$61*$L$61+$D$62*$L$62+$D$63*$L$63+$D$64*$L$64+$D$65*$L$65))/60*L80/Table!Z43*L$56)+((((1-SUM($E$40:$E$47))*$G$30)*($D$58*$M$58+$D$59*$M$59+$D$60*$M$60+$D$61*$M$61+$D$62*$M$62+$D$63*$M$63+$D$64*$M$64+$D$65*$M$65))/60*M80/Table!Z43*M$56)),0) -> 0 | K108: 0
C109: Add New | F109: 0 | H109: =IFERROR((((((1-SUM($E$40:$E$47))*$G$30)*($D$58*$F$58+$D$59*$F$59+$D$60*$F$60+$D$61*$F$61+$D$62*$F$62+$D$63*$F$63+$D$64*$F$64+$D$65*$F$65))/60*F81/Table!Z44*F$56)+((((1-SUM($E$40:$E$47))*$G$30)*($D$58*$G$58+$D$59*$G$59+$D$60*$G$60+$D$61*$G$61+$D$62*$G$62+$D$63*$G$63+$D$64*$G$64+$D$65*$G$65))/60*G81/Table!Z44*G$56)+((((1-SUM($E$40:$E$47))*$G$30)*($D$58*$H$58+$D$59*$H$59+$D$60*$H$60+$D$61*$H$61+$D$62*$H$62+$D$63*$H$63+$D$64*$H$64+$D$65*$H$65))/60*H81/Table!Z44*H$56)+((((1-SUM($E$40:$E$47))*$G$30)*($D$58*$I$58+$D$59*$I$59+$D$60*$I$60+$D$61*$I$61+$D$62*$I$62+$D$63*$I$63+$D$64*$I$64+$D$65*$I$65))/60*I81/Table!Z44*I$56)+((((1-SUM($E$40:$E$47))*$G$30)*($D$58*$J$58+$D$59*$J$59+$D$60*$J$60+$D$61*$J$61+$D$62*$J$62+$D$63*$J$63+$D$64*$J$64+$D$65*$J$65))/60*J81/Table!Z44*J$56)+((((1-SUM($E$40:$E$47))*$G$30)*($D$58*$K$58+$D$59*$K$59+$D$60*$K$60+$D$61*$K$61+$D$62*$K$62+$D$63*$K$63+$D$64*$K$64+$D$65*$K$65))/60*K81/Table!Z44*K$56)+((((1-SUM($E$40:$E$47))*$G$30)*($D$58*$L$58+$D$59*$L$59+$D$60*$L$60+$D$61*$L$61+$D$62*$L$62+$D$63*$L$63+$D$64*$L$64+$D$65*$L$65))/60*L81/Table!Z44*L$56)+((((1-SUM($E$40:$E$47))*$G$30)*($D$58*$M$58+$D$59*$M$59+$D$60*$M$60+$D$61*$M$61+$D$62*$M$62+$D$63*$M$63+$D$64*$M$64+$D$65*$M$65))/60*M81/Table!Z44*M$56)),0) -> 0 | K109: 0
C110: Add New | F110: 0 | H110: =IFERROR((((((1-SUM($E$40:$E$47))*$G$30)*($D$58*$F$58+$D$59*$F$59+$D$60*$F$60+$D$61*$F$61+$D$62*$F$62+$D$63*$F$63+$D$64*$F$64+$D$65*$F$65))/60*F82/Table!Z45*F$56)+((((1-SUM($E$40:$E$47))*$G$30)*($D$58*$G$58+$D$59*$G$59+$D$60*$G$60+$D$61*$G$61+$D$62*$G$62+$D$63*$G$63+$D$64*$G$64+$D$65*$G$65))/60*G82/Table!Z45*G$56)+((((1-SUM($E$40:$E$47))*$G$30)*($D$58*$H$58+$D$59*$H$59+$D$60*$H$60+$D$61*$H$61+$D$62*$H$62+$D$63*$H$63+$D$64*$H$64+$D$65*$H$65))/60*H82/Table!Z45*H$56)+((((1-SUM($E$40:$E$47))*$G$30)*($D$58*$I$58+$D$59*$I$59+$D$60*$I$60+$D$61*$I$61+$D$62*$I$62+$D$63*$I$63+$D$64*$I$64+$D$65*$I$65))/60*I82/Table!Z45*I$56)+((((1-SUM($E$40:$E$47))*$G$30)*($D$58*$J$58+$D$59*$J$59+$D$60*$J$60+$D$61*$J$61+$D$62*$J$62+$D$63*$J$63+$D$64*$J$64+$D$65*$J$65))/60*J82/Table!Z45*J$56)+((((1-SUM($E$40:$E$47))*$G$30)*($D$58*$K$58+$D$59*$K$59+$D$60*$K$60+$D$61*$K$61+$D$62*$K$62+$D$63*$K$63+$D$64*$K$64+$D$65*$K$65))/60*K82/Table!Z45*K$56)+((((1-SUM($E$40:$E$47))*$G$30)*($D$58*$L$58+$D$59*$L$59+$D$60*$L$60+$D$61*$L$61+$D$62*$L$62+$D$63*$L$63+$D$64*$L$64+$D$65*$L$65))/60*L82/Table!Z45*L$56)+((((1-SUM($E$40:$E$47))*$G$30)*($D$58*$M$58+$D$59*$M$59+$D$60*$M$60+$D$61*$M$61+$D$62*$M$62+$D$63*$M$63+$D$64*$M$64+$D$65*$M$65))/60*M82/Table!Z45*M$56)),0) -> 0 | K110: 0
C112: Administrator | D112: 25000 | H112: =SUM(H96:H110)/Table!Y26 -> 1.712016493
C123: Roles | D123: Input | G123: Future Demand (1-5 years) | I123: Baseline | J123: Future - Do Nothing | K123: Scenario 1 | L123: Scenario 2 | M123: Scenario 3 | N123: Scenario 4 | O123: Scenario 5 | P123: Scenario 6 | Q123: Scenario 7 | R123: Scenario 8 | S123: Scenario 9
C124: GP | D124: 5.298438152 | G124: =Table!$AB$52 -> 6.431677309 | I124: 10.6 | J124: 12.86714642 | K124: 6.431677309
C125: Nurse | D125: 5.902957941 | G125: =Table!$AB$54 -> 7.165492841 | I125: 11.8 | J125: 14.3238045 | K125: 7.165492841
C126: Consultant | D126: 0 | G126: =D126*(1+$K$19)*(1+$F$30)^$K$18 -> 0 | I126: 0 | J126: 0 | K126: 0
C127: Pharmacist | D127: 0.1172307283 | G127: =D127*(1+$K$19)*(1+$F$30)^$K$18 -> 0.1423042402 | I127: 0.2 | J127: 0.2427763475 | K127: 0.1423042402
C128: Dietician | D128: 0 | G128: 0 | I128: 0 | J128: 0 | K128: 0
C129: HCA | D129: 1.021403899 | G129: =D129*(1+$K$19)*(1+$F$30)^$K$18 -> 1.23986354 | I129: 2 | J129: 2.427763475 | K129: 1.23986354
C130: Psychologist | D130: 0 | G130: 0 | I130: 0 | J130: 0 | K130: 0
C131: Physician Associate | D131: 0 | G131: 0 | I131: 0 | J131: 0 | K131: 0
C132: Physiotherapist | D132: 0 | G132: 0 | I132: 0 | J132: 0 | K132: 0
C133: Podiatrist | D133: 0 | G133: 0 | I133: 0 | J133: 0 | K133: 0
C134: DSN | D134: 1.356101222 | G134: 1.646146507 | I134: 3 | J134: 3.641645212 | K134: 1.646146507
C135: Add New | D135: 0 | G135: 0 | I135: 0 | J135: 0 | K135: 0
C136: Add New | D136: 0 | G136: 0 | I136: 0 | J136: 0 | K136: 0
C137: Add New | D137: 0 | G137: 0 | I137: 0 | J137: 0 | K137: 0
C138: Add New | D138: 0 | G138: 0 | I138: 0 | J138: 0 | K138: 0
H141: System Cost | I141: =I124*$D96+I125*$D97+I126*$D98+I127*$D99+I128*$D100+I129*$D101+I130*$D102+I131*$D103+I132*$D104+I133*$D105+I134*$D106+I135*$D107+I136*$D108+I137*$D109+I138*$D110 -> 1752000 | J141: =J124*$D96+J125*$D97+J126*$D98+J127*$D99+J128*$D100+J129*$D101+J130*$D102+J131*$D103+J132*$D104+J133*$D105+J134*$D106+J135*$D107+J136*$D108+J137*$D109+J138*$D110 -> 2126720.804 | K141: 1056405.888 | L141: 0 | M141: 0 | N141: 0 | O141: 0 | P141: 0 | Q141: 0 | R141: 0 | S141: 0
H142: Per head of population cost | I142: =IF($H$20>0,I141/$H$20,I141/$H$19) -> 7.740430495 | J142: =IF($H$20>0,J141/$H$20,J141/$H$19) -> 9.395967217 | K142: 4.667258191 | L142: 0 | M142: 0 | N142: 0 | O142: 0 | P142: 0 | Q142: 0 | R142: 0 | S142: 0

Sheet Inputsheet2Dashboard
C48: Baseline | D48: Future - Do Nothing | E48: Scenario 1 | F48: Scenario 2 | G48: Scenario 3 | H48: Scenario 4 | I48: Scenario 5 | J48: Scenario 6 | K48: Scenario 7 | L48: Scenario 8 | M48: Scenario 9
B49: =[1]InputSheetOp2!D68 -> GP | C49: =InputSheetOp2!I124 -> 10.6 | D49: =InputSheetOp2!J124 -> 12.86714642 | E49: =InputSheetOp2!K124 -> 6.431677309 | F49: =InputSheetOp2!L124 -> 0 | G49: =InputSheetOp2!M124 -> 0 | H49: =InputSheetOp2!N124 -> 0 | I49: =InputSheetOp2!O124 -> 0 | J49: =InputSheetOp2!P124 -> 0 | K49: =InputSheetOp2!Q124 -> 0 | L49: =InputSheetOp2!R124 -> 0 | M49: =InputSheetOp2!S124 -> 0
B50: =[1]InputSheetOp2!D69 -> Nurse | C50: =InputSheetOp2!I125 -> 11.8 | D50: =InputSheetOp2!J125 -> 14.3238045 | E50: =InputSheetOp2!K125 -> 7.165492841 | F50: =InputSheetOp2!L125 -> 0 | G50: =InputSheetOp2!M125 -> 0 | H50: =InputSheetOp2!N125 -> 0 | I50: =InputSheetOp2!O125 -> 0 | J50: =InputSheetOp2!P125 -> 0 | K50: =InputSheetOp2!Q125 -> 0 | L50: =InputSheetOp2!R125 -> 0 | M50: =InputSheetOp2!S125 -> 0
B51: =[1]InputSheetOp2!D70 -> Consultant | C51: =InputSheetOp2!I126 -> 0 | D51: =InputSheetOp2!J126 -> 0 | E51: =InputSheetOp2!K126 -> 0 | F51: =InputSheetOp2!L126 -> 0 | G51: =InputSheetOp2!M126 -> 0 | H51: =InputSheetOp2!N126 -> 0 | I51: =InputSheetOp2!O126 -> 0 | J51: =InputSheetOp2!P126 -> 0 | K51: =InputSheetOp2!Q126 -> 0 | L51: =InputSheetOp2!R126 -> 0 | M51: =InputSheetOp2!S126 -> 0
B52: =[1]InputSheetOp2!D71 -> Pharmacist | C52: =InputSheetOp2!I127 -> 0.2 | D52: =InputSheetOp2!J127 -> 0.2427763475 | E52: =InputSheetOp2!K127 -> 0.1423042402 | F52: =InputSheetOp2!L127 -> 0 | G52: =InputSheetOp2!M127 -> 0 | H52: =InputSheetOp2!N127 -> 0 | I52: =InputSheetOp2!O127 -> 0 | J52: =InputSheetOp2!P127 -> 0 | K52: =InputSheetOp2!Q127 -> 0 | L52: =InputSheetOp2!R127 -> 0 | M52: =InputSheetOp2!S127 -> 0
B53: =[1]InputSheetOp2!D72 -> Dietician | C53: =InputSheetOp2!I128 -> 0 | D53: =InputSheetOp2!J128 -> 0 | E53: =InputSheetOp2!K128 -> 0 | F53: =InputSheetOp2!L128 -> 0 | G53: =InputSheetOp2!M128 -> 0 | H53: =InputSheetOp2!N128 -> 0 | I53: =InputSheetOp2!O128 -> 0 | J53: =InputSheetOp2!P128 -> 0 | K53: =InputSheetOp2!Q128 -> 0 | L53: =InputSheetOp2!R128 -> 0 | M53: =InputSheetOp2!S128 -> 0
B54: =[1]InputSheetOp2!D73 -> HCA | C54: =InputSheetOp2!I129 -> 2 | D54: =InputSheetOp2!J129 -> 2.427763475 | E54: =InputSheetOp2!K129 -> 1.23986354 | F54: =InputSheetOp2!L129 -> 0 | G54: =InputSheetOp2!M129 -> 0 | H54: =InputSheetOp2!N129 -> 0 | I54: =InputSheetOp2!O129 -> 0 | J54: =InputSheetOp2!P129 -> 0 | K54: =InputSheetOp2!Q129 -> 0 | L54: =InputSheetOp2!R129 -> 0 | M54: =InputSheetOp2!S129 -> 0
B55: =[1]InputSheetOp2!D74 -> Psychologist | C55: =InputSheetOp2!I130 -> 0 | D55: =InputSheetOp2!J130 -> 0 | E55: =InputSheetOp2!K130 -> 0 | F55: =InputSheetOp2!L130 -> 0 | G55: =InputSheetOp2!M130 -> 0 | H55: =InputSheetOp2!N130 -> 0 | I55: =InputSheetOp2!O130 -> 0 | J55: =InputSheetOp2!P130 -> 0 | K55: =InputSheetOp2!Q130 -> 0 | L55: =InputSheetOp2!R130 -> 0 | M55: =InputSheetOp2!S130 -> 0
B56: =[1]InputSheetOp2!D75 -> Physician Associate | C56: =InputSheetOp2!I131 -> 0 | D56: =InputSheetOp2!J131 -> 0 | E56: =InputSheetOp2!K131 -> 0 | F56: =InputSheetOp2!L131 -> 0 | G56: =InputSheetOp2!M131 -> 0 | H56: =InputSheetOp2!N131 -> 0 | I56: =InputSheetOp2!O131 -> 0 | J56: =InputSheetOp2!P131 -> 0 | K56: =InputSheetOp2!Q131 -> 0 | L56: =InputSheetOp2!R131 -> 0 | M56: =InputSheetOp2!S131 -> 0
B57: =[1]InputSheetOp2!D76 -> Physiotherapist | C57: =InputSheetOp2!I132 -> 0 | D57: =InputSheetOp2!J132 -> 0 | E57: =InputSheetOp2!K132 -> 0 | F57: =InputSheetOp2!L132 -> 0 | G57: =InputSheetOp2!M132 -> 0 | H57: =InputSheetOp2!N132 -> 0 | I57: =InputSheetOp2!O132 -> 0 | J57: =InputSheetOp2!P132 -> 0 | K57: =InputSheetOp2!Q132 -> 0 | L57: =InputSheetOp2!R132 -> 0 | M57: =InputSheetOp2!S132 -> 0
B58: =[1]InputSheetOp2!D77 -> Podiatrist | C58: =InputSheetOp2!I133 -> 0 | D58: =InputSheetOp2!J133 -> 0 | E58: =InputSheetOp2!K133 -> 0 | F58: =InputSheetOp2!L133 -> 0 | G58: =InputSheetOp2!M133 -> 0 | H58: =InputSheetOp2!N133 -> 0 | I58: =InputSheetOp2!O133 -> 0 | J58: =InputSheetOp2!P133 -> 0 | K58: =InputSheetOp2!Q133 -> 0 | L58: =InputSheetOp2!R133 -> 0 | M58: =InputSheetOp2!S133 -> 0
B59: =[1]InputSheetOp2!D78 -> DSN | C59: =InputSheetOp2!I134 -> 3 | D59: =InputSheetOp2!J134 -> 3.641645212 | E59: =InputSheetOp2!K134 -> 1.646146507 | F59: =InputSheetOp2!L134 -> 0 | G59: =InputSheetOp2!M134 -> 0 | H59: =InputSheetOp2!N134 -> 0 | I59: =InputSheetOp2!O134 -> 0 | J59: =InputSheetOp2!P134 -> 0 | K59: =InputSheetOp2!Q134 -> 0 | L59: =InputSheetOp2!R134 -> 0 | M59: =InputSheetOp2!S134 -> 0
B60: =[1]InputSheetOp2!D79 -> Add New | C60: =InputSheetOp2!I135 -> 0 | D60: =InputSheetOp2!J135 -> 0 | E60: =InputSheetOp2!K135 -> 0 | F60: =InputSheetOp2!L135 -> 0 | G60: =InputSheetOp2!M135 -> 0 | H60: =InputSheetOp2!N135 -> 0 | I60: =InputSheetOp2!O135 -> 0 | J60: =InputSheetOp2!P135 -> 0 | K60: =InputSheetOp2!Q135 -> 0 | L60: =InputSheetOp2!R135 -> 0 | M60: =InputSheetOp2!S135 -> 0
B61: =[1]InputSheetOp2!D80 -> Add New | C61: =InputSheetOp2!I136 -> 0 | D61: =InputSheetOp2!J136 -> 0 | E61: =InputSheetOp2!K136 -> 0 | F61: =InputSheetOp2!L136 -> 0 | G61: =InputSheetOp2!M136 -> 0 | H61: =InputSheetOp2!N136 -> 0 | I61: =InputSheetOp2!O136 -> 0 | J61: =InputSheetOp2!P136 -> 0 | K61: =InputSheetOp2!Q136 -> 0 | L61: =InputSheetOp2!R136 -> 0 | M61: =InputSheetOp2!S136 -> 0
B62: =[1]InputSheetOp2!D81 -> Add New | C62: =InputSheetOp2!I137 -> 0 | D62: =InputSheetOp2!J137 -> 0 | E62: =InputSheetOp2!K137 -> 0 | F62: =InputSheetOp2!L137 -> 0 | G62: =InputSheetOp2!M137 -> 0 | H62: =InputSheetOp2!N137 -> 0 | I62: =InputSheetOp2!O137 -> 0 | J62: =InputSheetOp2!P137 -> 0 | K62: =InputSheetOp2!Q137 -> 0 | L62: =InputSheetOp2!R137 -> 0 | M62: =InputSheetOp2!S137 -> 0
B63: =[1]InputSheetOp2!D82 -> Add New | C63: =InputSheetOp2!I138 -> 0 | D63: =InputSheetOp2!J138 -> 0 | E63: =InputSheetOp2!K138 -> 0 | F63: =InputSheetOp2!L138 -> 0 | G63: =InputSheetOp2!M138 -> 0 | H63: =InputSheetOp2!N138 -> 0 | I63: =InputSheetOp2!O138 -> 0 | J63: =InputSheetOp2!P138 -> 0 | K63: =InputSheetOp2!Q138 -> 0 | L63: =InputSheetOp2!R138 -> 0 | M63: =InputSheetOp2!S138 -> 0
C66: =[1]InputSheetOp2!G29 -> Total primary care consultations 2017 | D66: =[1]InputSheetOp2!H29 -> Total primary care consultations +X years
C67: =InputSheetOp2!G30 -> 217290.24 | D67: =InputSheetOp2!H30 -> 263764.654
C69: Baseline | D69: Future - Do Nothing | E69: Scenario 1 | F69: Scenario 2 | G69: Scenario 3 | H69: Scenario 4 | I69: Scenario 5 | J69: Scenario 6 | K69: Scenario 7 | L69: Scenario 8 | M69: Scenario 9
B70: =InputSheetOp2!H141 -> System Cost | C70: =InputSheetOp2!I141 -> 1752000 | D70: =InputSheetOp2!J141 -> 2126720.804 | E70: =InputSheetOp2!K141 -> 1056405.888 | F70: =InputSheetOp2!L141 -> 0 | G70: =InputSheetOp2!M141 -> 0 | H70: =InputSheetOp2!N141 -> 0 | I70: =InputSheetOp2!O141 -> 0 | J70: =InputSheetOp2!P141 -> 0 | K70: =InputSheetOp2!Q141 -> 0 | L70: =InputSheetOp2!R141 -> 0 | M70: =InputSheetOp2!S141 -> 0
B71: =InputSheetOp2!H142 -> Per head of population cost | C71: =InputSheetOp2!I142 -> 7.740430495 | D71: =InputSheetOp2!J142 -> 9.395967217 | E71: =InputSheetOp2!K142 -> 4.667258191 | F71: =InputSheetOp2!L142 -> 0 | G71: =InputSheetOp2!M142 -> 0 | H71: =InputSheetOp2!N142 -> 0 | I71: =InputSheetOp2!O142 -> 0 | J71: =InputSheetOp2!P142 -> 0 | K71: =InputSheetOp2!Q142 -> 0 | L71: =InputSheetOp2!R142 -> 0 | M71: =InputSheetOp2!S142 -> 0

Sheet Piv1 (hidden)
A1: STP | B1: NWL
A2: CCG | B2: Hammersmith and Fulham | M2: CCG | N2: Hammersmith and Fulham
A4: Average of 2017Dec pop | B4: Average of 5 year %Growth-from GPFV paper | C4: Average of ST3 trainees in practice | D4: Average of %staff over 55 | E4: Average of Total Staff FTE GP numbers | F4: Average of FTE nurses | G4: Average of Number of ST3 trainees in each CCG (correct as of July 2017) | H4: Average of new Other Nurse joiner | I4: Average of new Other GP joiner | J4: Average of Population in +5yrs | M4: Row Labels | N4: Average of 2017Dec pop | O4: Average of 5 year %Growth-from GPFV paper
A5: 226344 | B5: 0.04812224914 | C5: 14 | D5: 0.1829268293 | E5: 124.2266823 | F5: 45.38999957 | G5: 14 | H5: 2.998362322 | I5: 4.997270537 | J5: 237236.1824 | M5: NWL | N5: 226344 | O5: 0.04812224914
M6: Grand Total | N6: 226344 | O6: 0.04812224914

Sheet Table (hidden)
A1: Staff type | B1: CCG | C1: STP | D1: 2017Dec pop | E1: 2016 Pops | F1: Population in +5yrs | G1: ST3 trainees in practice | H1: %staff over 55 | I1: Number of ST3 trainees in each CCG (correct as of July 2017) | J1: 5 year %Growth-from GPFV paper | K1: Total Staff FTE GP numbers | L1: new Other GP joiner | M1: new Other Nurse joiner | N1: FTE nurses | O1: a | P1: b | Q1: c | R1: d | S1: e | T1: f | U1: g | V1: h | X1: Assumptions-Question to Paul shouldwe put these on the input sheet? Since we are making assumption here-orange/changing cells
A2: GP | B2: Barking and Dagenham | C2: NEL | D2: 222517 | E2: 203575.061 | F2: =D2*(1+J2) -> 236288.6083 | G2: 5 | H2: 0.380952381 | I2: 5 | J2: 0.06189013987 | K2: 92.82759594 | L2: =E2/AVERAGE($E$2:$E$33)*$Y$27 -> 3.714322697 | M2: =E2/AVERAGE($E$2:$E$33)*$Y$28 -> 2.228593618 | N2: 39.94999968 | X2: ST3 trainees in practice | Y2: =IF(OR(InputSheetOp1!H20="",InputSheetOp1!H20=0),'Piv1'!$C$5,InputSheetOp1!H20/InputSheetOp1!H19*'Piv1'!$C$5) -> 14 | AA2: (takes a portion of the trainees if the population is overriden -If not overridden-use the total number of trainees for the chosen borough) The formula =IF(OR(InputSheetOp1!H20="",InputSheetOp1!H20=0),'Piv1'!$C$5,InputSheetOp1!H20/InputSheetOp1!H19*'Piv1'!$C$5)
A3: GP | B3: Barnet | C3: NCL | D3: 422435 | E3: 384204.854 | F3: 447109.4102 | G3: 22 | H3: 0.2688172043 | I3: 22 | J3: 0.058409957 | K3: 200.8582276 | L3: 7.009998192 | M3: 4.205998915 | N3: 77.07999919 | X3: Total Current Staff FTE-Current GP Supply | Y3: =InputSheetOp1!$O$96 -> 124 | AA3: InputSheetOp1!$I$123 (picks up baseline figure which they can choose or use the figure calculated by the model)
A4: GP | B4: Bexley | C4: SEL | D4: 240515 | E4: 244155.819 | F4: 251673.8035 | G4: 13 | H4: 0.2592592593 | I4: 13 | J4: 0.04639545781 | K4: 103.097398 | L4: 4.454737705 | M4: 2.672842623 | N4: 56.17999999 | X4: %staff over 55 | Y4: ='Piv1'!$D$5 -> 0.1829268293 | AA4: Picks the data up directly from the table on the left (through a pivot table) {'Piv1'!$D$5}
A5: GP | B5: Brent | C5: NWL | D5: 377950 | E5: 328675.075 | F5: 397717.778 | G5: 23 | H5: 0.3056994819 | I5: 23 | J5: 0.05230262745 | K5: 187.4284664 | L5: 5.996831267 | M5: 3.59809876 | N5: 62.32999927 | X5: Other GP Leavers (non retirees) | Y5: =Y3*Y7 -> 9.3 | AA5: Y3*Y7 {no need for further weighting as the baseline is picked up from the imput sheet which should already cater for a smaller population if the ppulatin is overriden}
A6: GP | B6: Bromley | C6: SEL | D6: 348410 | E6: 326803.914 | F6: 364036.4427 | G6: 17 | H6: 0.1944444444 | I6: 17 | J6: 0.04485072966 | K6: 169.4804942 | L6: 5.962691055 | M6: 3.577614633 | N6: 59.57999897 | X6: Percentage over 55 retiring per year | Y6: 0.18 | AA6: This is assumed -I think this should/could come to the input sheet as this may vary from borough to borough or from profession to profession (eg when when population is overridden)
A7: GP | B7: Camden | C7: NCL | D7: 283781 | E7: 238550.268 | F7: 293388.679 | G7: 38 | H7: 0.1594202899 | I7: 38 | J7: 0.0338559628 | K7: 168.957745 | L7: 4.352461792 | M7: 2.611477075 | N7: 51.54999978 | X7: Percentage staff (GP or nurse) leaving for other reasons | Y7: 0.075 | AA7: This is assumed -I think this should/could come to the input sheet as this may vary from borough to borough or from profession to profession (eg when when population is overridden)
A8: GP | B8: Central London (Westminster) | C8: NWL | D8: 227808 | E8: 314497 | F8: 236549.661 | G8: 7 | H8: 0.2247191011 | I8: 7 | J8: 0.03837293242 | K8: 101.2124284 | L8: 5.738145623 | M8: 3.442887374 | N8: 47.10999966 | X8: Working Weeks | Y8: 43 | AA8: could be made orange-But Paul does not want this to be changeable for now -any assumption on headcount requirement will assume GPs only work43 weeks per year
A9: GP | B9: City and Hackney | C9: NEL | D9: 317246 | E9: 383532.177 | F9: 336280.76 | G9: 19 | H9: 0.2099 | I9: 19 | J9: 0.06 | K9: 189.2606259 | L9: 6.997724884 | M9: 4.19863493 | N9: 52.43 | X9: Hours worked per week | Y9: 37.5 | AA9: could be made orange-But Paul does not want this to be changeable for now-any assumption on headcount requirement will assume GPs only work 37.5 hrs a weeks
A10: GP | B10: Croydon | C10: SWL | D10: 410551 | E10: 351025.359 | F10: 430385.8573 | G10: 23 | H10: 0.2722513089 | I10: 23 | J10: 0.04831277299 | K10: 201.0113352 | L10: 6.404622707 | M10: 3.842773624 | N10: 88.07999958 | X10: GP NQ joining per year FTE for borough - HEE Data - Guide | Y10: =Y2*Y25 -> 9.8 | AA10: not referenced/Unused -this formula/info in corporated in other formulas when used
A11: GP | B11: Ealing | C11: NWL | D11: 435566 | E11: 332075.692 | F11: 458925.6776 | G11: 13 | H11: 0.2261306533 | I11: 13 | J11: 0.05363062673 | K11: 196.1120485 | L11: 6.058877123 | M11: 3.635326274 | N11: 86.88999971 | X11: GP NQ joining per year FTE for borough - HEE Data - Guide - Amended to population scale | Y11: =(InputSheetOp1!$H$20/GETPIVOTDATA("Average of 2017Dec pop",'Piv1'!$A$4))*Y10 -> 0 | AA11: not referenced/Unused -this formula/info in corporated in other formulas when used-not sure if correct anyway
A12: GP | B12: Enfield | C12: NCL | D12: 337683 | E12: 276090.139 | F12: 356229.9333 | G12: 10 | H12: 0.3157894737 | I12: 10 | J12: 0.05492409544 | K12: 154.9856297 | L12: 5.037394388 | M12: 3.022436633 | N12: 52.76999961 | X12: Other new GP joiners per year FTE | Y12: =IF(OR(InputSheetOp1!H20="",InputSheetOp1!H20=0),'Piv1'!$I$5,InputSheetOp1!H20/InputSheetOp1!H19*'Piv1'!$I$5) -> 4.997270537 | AA12: This picks the figure up from the table-average other new joiner per borough is 25 for GPs (and 20 for Nurses) -this then gets apportioned for over-riden population
A13: GP | B13: Greenwich | C13: SEL | D13: 295364 | E13: 183221.777 | F13: 313482.2791 | G13: 13 | H13: 0.328125 | I13: 13 | J13: 0.06134220534 | K13: 135.9896511 | L13: 3.342967462 | M13: 2.005780477 | N13: 59.11999952 | X13: CurrentGPCapacity-Baseline | Y13: =InputSheetOp1!$N$96 -> 124 | Z13: Stewart just amended these 1May at 14.39pm | AA13: (duplicated from Y2) InputSheetOp1!$I$123 (picks up baseline figure which they can choose or use the figure calculated by the model)
A14: GP | B14: Hammersmith and Fulham | C14: NWL | D14: 226344 | E14: 273891.026 | F14: 237236.1824 | G14: 14 | H14: 0.1829268293 | I14: 14 | J14: 0.04812224914 | K14: 124.2266823 | L14: 4.997270537 | M14: 2.998362322 | N14: 45.38999957 | X14: GP Supply in Year +1 | Y14: =Y13+Z14 -> 125.4143437 | Z14: =(($Y$2*$Y$25)+Y$12-Y$5)-($Y$13*$Y$4*$Y$6) -> 1.414343708 | AA14: Stewart said this formula should be [(($Y$2*$Y$21)+Y$12-Y$5)]-however I think it is incorrect as the retirees should also be accounted for-SO-So these supply figures are calculated as; [Trainee count (apportioned if population is overridden) ] multiplied by the [trainee retention rate] PLUS [other joiners (apportioned if population is overridden)] MINUS [other leavers (apportioned if population is overridden)] MINUS [retirees (current/baseline staff multiplied by %staff over 55 multiplied by Percentage over 55 retiring per year]
A15: GP | B15: Haringey | C15: NCL | D15: 316492 | E15: 252971.07 | F15: 331888.7668 | G15: 12 | H15: 0.3181818182 | I15: 12 | J15: 0.04864820215 | K15: 144.0862603 | L15: 4.615576104 | M15: 2.769345663 | N15: 62.14999892 | X15: GP Supply in Year +2 | Y15: =Y14+Z14 -> 126.8286874 | Z15: =(($Y$2*$Y$25)+Y$12-Y$5)-($Y$13*$Y$4*$Y$6) -> 1.414343708 | AA15: Stewart said this formula should be [(($Y$2*$Y$21)+Y$12-Y$5)]-however I think it is incorrect as the retirees should also be accounted for-SO-So these supply figures are calculated as; [Trainee count (apportioned if population is overridden) ] multiplied by the [trainee retention rate] PLUS [other joiners (apportioned if population is overridden)] MINUS [other leavers (apportioned if population is overridden)] MINUS [retirees (current/baseline staff multiplied by %staff over 55 multiplied by Percentage over 55 retiring per year]
A16: GP | B16: Harrow | C16: NWL | D16: 265538 | E16: 250935.008 | F16: 282312.7015 | G16: 15 | H16: 0.2442748092 | I16: 15 | J16: 0.06317250822 | K16: 136.2729301 | L16: 4.578427196 | M16: 2.747056318 | N16: 55.52999999 | X16: GP Supply in Year +3 | Y16: =Y15+Z15 -> 128.2430311 | Z16: 1.414343708 | AA16: Stewart said this formula should be [(($Y$2*$Y$21)+Y$12-Y$5)]-however I think it is incorrect as the retirees should also be accounted for-SO-So these supply figures are calculated as; [Trainee count (apportioned if population is overridden) ] multiplied by the [trainee retention rate] PLUS [other joiners (apportioned if population is overridden)] MINUS [other leavers (apportioned if population is overridden)] MINUS [retirees (current/baseline staff multiplied by %staff over 55 multiplied by Percentage over 55 retiring per year]
A17: GP | B17: Havering | C17: NEL | D17: 277244 | E17: 298900.855 | F17: 291885.5553 | G17: 12 | H17: 0.3921568627 | I17: 12 | J17: 0.05281108087 | K17: 142.5881304 | L17: 5.453586625 | M17: 3.272151975 | N17: 61.83999962 | X17: GP Supply in Year +4 | Y17: 129.6573748 | Z17: 1.414343708 | AA17: Stewart said this formula should be [(($Y$2*$Y$21)+Y$12-Y$5)]-however I think it is incorrect as the retirees should also be accounted for-SO-So these supply figures are calculated as; [Trainee count (apportioned if population is overridden) ] multiplied by the [trainee retention rate] PLUS [other joiners (apportioned if population is overridden)] MINUS [other leavers (apportioned if population is overridden)] MINUS [retirees (current/baseline staff multiplied by %staff over 55 multiplied by Percentage over 55 retiring per year]
A18: GP | B18: Hillingdon | C18: NWL | D18: 311828 | E18: 271874.324 | F18: 327549.5769 | G18: 12 | H18: 0.2857142857 | I18: 12 | J18: 0.05041746368 | K18: 128.1429201 | L18: 4.960474861 | M18: 2.976284917 | N18: 57.47999976 | X18: GP Supply in Year +5 | Y18: 131.0717185 | Z18: =(($Y$2*$Y$25)+Y$12-Y$5)-($Y$13*$Y$4*$Y$6) -> 1.414343708 | AA18: Stewart said this formula should be [(($Y$2*$Y$21)+Y$12-Y$5)]-however I think it is incorrect as the retirees should also be accounted for-SO-So these supply figures are calculated as; [Trainee count (apportioned if population is overridden) ] multiplied by the [trainee retention rate] PLUS [other joiners (apportioned if population is overridden)] MINUS [other leavers (apportioned if population is overridden)] MINUS [retirees (current/baseline staff multiplied by %staff over 55 multiplied by Percentage over 55 retiring per year]
A19: GP | B19: Hounslow | C19: NWL | D19: 313844 | E19: 222886.848 | F19: 330788.7876 | G19: 8 | H19: 0.3168316832 | I19: 8 | J19: 0.05399111539 | K19: 163.372551 | L19: 4.06667533 | M19: 2.440005198 | N19: 65.01999886 | X19: Total Current Staff FTE-Current NURSE Supply | Y19: =InputSheetOp1!$O$97 -> 45
A20: GP | B20: Islington | C20: NCL | D20: 251474 | E20: 159617.115 | F20: 259115.4968 | G20: 11 | H20: 0.185483871 | I20: 11 | J20: 0.03038682659 | K20: 141.3357298 | L20: 2.912289306 | M20: 1.747373584 | N20: 47.68999979 | X20: Nurse Other Joiners | Y20: =IF(OR(InputSheetOp1!H20="",InputSheetOp1!H20=0),'Piv1'!$H$5,InputSheetOp1!H20/InputSheetOp1!H19*'Piv1'!$H$5) -> 2.998362322 | AA20: This picks the figure up from the table-average other new joiner per borough is 20 for Nurses (25 for GPs) -this then gets apportioned for over-riden population
A21: GP | B21: Kingston | C21: SWL | D21: 209112 | E21: 173060.858 | F21: 218336.8856 | G21: 6 | H21: 0.1962616822 | I21: 6 | J21: 0.04411456807 | K21: 111.8458678 | L21: 3.157576717 | M21: 1.89454603 | N21: 45.16999982 | X21: Nurse Other Leavers | Y21: =Y19*Y7 -> 3.375 | AA21: Y19*Y7 {no need for further weighting as the baseline is picked up from the imput sheet which should already cater for a smaller population if the ppulatin is overriden}
A22: GP | B22: Lambeth | C22: SEL | D22: 410340 | E22: 324131.003 | F22: 427262.1145 | G22: 24 | H22: 0.152173913 | I22: 24 | J22: 0.04123925165 | K22: 220.1785232 | L22: 5.913922537 | M22: 3.548353522 | N22: 74.16000007 | X22: Nurse Supply (constant every year) | Y22: =Y20-Y21 -> -0.3766376778
A23: GP | B23: Lewisham | C23: SEL | D23: 329022 | E23: 298744.564 | F23: 346865.5099 | G23: 16 | H23: 0.2808988764 | I23: 16 | J23: 0.05423196587 | K23: 162.433234 | L23: 5.450735022 | M23: 3.270441013 | N23: 66.38999967 | X23: BaselineNursePopulation | Y23: 9 | AA23: not yet used/referenced for any purpose but it was on the original model`s data back sheet
A24: GP | B24: Merton | C24: SWL | D24: 226428 | E24: 207868.001 | F24: 237529.1961 | G24: 12 | H24: 0.168 | I24: 12 | J24: 0.04902748836 | K24: 111.5310758 | L24: 3.792649406 | M24: 2.275589643 | N24: 47.23999976 | X24: BaselineHCAPopulation | Y24: 2 | AA24: not yet used/referenced for any purpose but it was on the original model`s data back sheet
A25: GP | B25: Newham | C25: NEL | D25: 398140 | E25: 332321.077 | F25: 419447.0247 | G25: 11 | H25: 0.3231707317 | I25: 11 | J25: 0.05351641298 | K25: 173.2794334 | L25: 6.063354288 | M25: 3.638012573 | N25: 74.25999911 | X25: TraineeRetentionRate | Y25: 0.7 | AA25: Paul said may come to the front at some stage - as this may vary from borough to borough or from profession to profession (eg when when population is overridden)
A26: GP | B26: Redbridge | C26: NEL | D26: 318732 | E26: 302081.813 | F26: 341380.8948 | G26: 19 | H26: 0.2926829268 | I26: 19 | J26: 0.07105936894 | K26: 132.5611682 | L26: 5.511624699 | M26: 3.30697482 | N26: 47.7199996 | X26: Admin Apportioning | Y26: 8 | AA26: Referenced/Used in cell H112 on both input sheets (1/X of the time is spent on admin)-not sure why this info was put on the face of the input sheet though-not used in any other further calculations beside H112 (H112 is not refernced or used further elsewhere). Also non clinical time has already be taken out -so not sure why additional admin time should be shown...I just find the logic strange
A27: GP | B27: Richmond | C27: SWL | D27: 216808 | E27: 198405.514 | F27: 228657.8987 | G27: 19 | H27: 0.2260869565 | I27: 19 | J27: 0.05465618763 | K27: 115.6886954 | L27: 3.620001882 | M27: 2.172001129 | N27: 35.68999985 | X27: Average new GP joiner per borough | Y27: 5 | AA27: Average new GP joiner per borough AND Average new Nurse joiner per borough are assumed figures and these numbers are picked up by the main table columns L and M-it is weighed across boroughs
A28: GP | B28: Southwark | C28: SEL | D28: 328996 | E28: 308188.76 | F28: 343362.0158 | G28: 15 | H28: 0.2013888889 | I28: 15 | J28: 0.04366623234 | K28: 160.4892659 | L28: 5.623048819 | M28: 3.373829291 | N28: 70.04999965 | X28: Average new Nurse joiner per borough | Y28: 3 | Z28: Op2
A29: GP | B29: Sutton | C29: SWL | D29: 194371 | E29: 201880.88 | F29: 203788.671 | G29: 17 | H29: 0.2522522523 | I29: 17 | J29: 0.04845203766 | K29: 95.84480114 | L29: 3.683411568 | M29: 2.210046941 | N29: 40.93999991 | X29: Overriden Population 5yr growth-assume constant rate | Y29: =IF(OR(InputSheetOp1!K20=0,InputSheetOp1!K20="",InputSheetOp1!K20="-"),InputSheetOp1!K19,InputSheetOp1!K20) -> 0.04812224914 | Z29: =IF(OR(InputSheetOp2!K20=0,InputSheetOp2!K20="",InputSheetOp2!K20="-"),InputSheetOp2!K19,InputSheetOp2!K20) -> 0.04812224914 | AA29: This number comes from the input sheet(s) (K19 and K20)-if the growth percentage cell for the overridden population growth rate is left blank then use the borough population growth rate WHEN POPULATION IS OVERRIDDEN IT WAS SAID IT HAS TO BE A CONSTANT ASSUMED GROWTH RATE-NOT THE BOROUGH POPULATION GROWTH
A30: GP | B30: Tower Hamlets | C30: NEL | D30: 321811 | E30: 290632.358 | F30: 338399.9318 | G30: 15 | H30: 0.1739130435 | I30: 15 | J30: 0.05154867855 | K30: 184.8512031 | L30: 5.30272401 | M30: 3.181634406 | N30: 77.32999999 | X30: Appointments per person | Y30: 6.46 | AA30: not yet used/referenced for any purpose but it was on the original model`s data back sheet
A31: GP | B31: Waltham Forest | C31: NEL | D31: 310524 | E31: 275693.365 | F31: 330102.7199 | G31: 15 | H31: 0.3303571429 | I31: 15 | J31: 0.0630505852 | K31: 141.7457961 | L31: 5.030155059 | M31: 3.018093036 | N31: 55.76999946 | X31: Total Patient Facing time per year (hours) -GP | Y31: =($Y$8*$Y$9)*(1-InputSheetOp1!F96) -> 1128.75 | Z31: =($Y$8*$Y$9)*(1-InputSheetOp2!F96) -> 1209.375 | AA31: number of hours of work a GP can dedicate to clinical work per year (Excluding non clinical time -non clinical time is being picked up from the input sheet)
A32: GP | B32: Wandsworth | C32: SWL | D32: 401519 | E32: 320371.325 | F32: 422168.2696 | G32: 25 | H32: 0.1950207469 | I32: 25 | J32: 0.0514278767 | K32: 208.7977006 | L32: 5.845325445 | M32: 3.507195267 | N32: 82.10999964 | X32: Nurse Total Patient Facing time per year (hours) | Y32: =($Y$8*$Y$9)*(1-InputSheetOp1!F97) -> 1128.75 | Z32: =($Y$8*$Y$9)*(1-InputSheetOp2!F97) -> 1209.375 | AA32: number of hours of work a Nurse can dedicate to clinical work per year (Excluding non clinical time -non clinical time is being picked up from the input sheet)
A33: GP | B33: West London | C33: NWL | D33: 248924 | E33: 238437.029 | F33: 259709.391 | G33: 12 | H33: 0.3157894737 | I33: 12 | J33: 0.04332804787 | K33: 141.0908793 | L33: 4.350395693 | M33: 2.610237416 | N33: 52.95999966 | X33: Consultant Total Patient Facing time per year (hours) | Y33: =($Y$8*$Y$9)*(1-InputSheetOp1!F98) -> 1370.625 | Z33: =($Y$8*$Y$9)*(1-InputSheetOp2!F98) -> 1370.625 | AA33: number of hours of work this profesional can dedicate to clinical work per year (Excluding non clinical time -non clinical time is being picked up from the input sheet) | AV33: =Y3-(Y3*Y7) -> 114.7
X34: Pharmacist Total Patient Facing time per year (hours) | Y34: =($Y$8*$Y$9)*(1-InputSheetOp1!F99) -> 1370.625 | Z34: =($Y$8*$Y$9)*(1-InputSheetOp2!F99) -> 1467.375 | AA34: number of hours of work this profesional can dedicate to clinical work per year (Excluding non clinical time -non clinical time is being picked up from the input sheet) | AV34: =Y3*Y7 -> 9.3
X35: Dietcian Total Patient Facing time per year (hours) | Y35: =($Y$8*$Y$9)*(1-InputSheetOp1!F100) -> 1370.625 | Z35: =($Y$8*$Y$9)*(1-InputSheetOp2!F100) -> 1499.625 | AA35: number of hours of work this profesional can dedicate to clinical work per year (Excluding non clinical time -non clinical time is being picked up from the input sheet)
X36: HCA Total Patient Facing time per year (hours) | Y36: =($Y$8*$Y$9)*(1-InputSheetOp1!F101) -> 1370.625 | Z36: =($Y$8*$Y$9)*(1-InputSheetOp2!F101) -> 1515.75 | AA36: number of hours of work this profesional can dedicate to clinical work per year (Excluding non clinical time -non clinical time is being picked up from the input sheet)
X37: Psychologist Total Patient Facing time per year (hours) | Y37: =($Y$8*$Y$9)*(1-InputSheetOp1!F102) -> 1370.625 | Z37: =($Y$8*$Y$9)*(1-InputSheetOp2!F102) -> 1483.5 | AA37: number of hours of work this profesional can dedicate to clinical work per year (Excluding non clinical time -non clinical time is being picked up from the input sheet)
X38: Physician Associate Total Patient Facing time per year (hours) | Y38: =($Y$8*$Y$9)*(1-InputSheetOp1!F103) -> 1370.625 | Z38: =($Y$8*$Y$9)*(1-InputSheetOp2!F103) -> 1467.375 | AA38: number of hours of work this profesional can dedicate to clinical work per year (Excluding non clinical time -non clinical time is being picked up from the input sheet)
X39: Physiotherapist Total Patient Facing time per year (hours) | Y39: =($Y$8*$Y$9)*(1-InputSheetOp1!F104) -> 1370.625 | Z39: =($Y$8*$Y$9)*(1-InputSheetOp2!F104) -> 1451.25 | AA39: number of hours of work this profesional can dedicate to clinical work per year (Excluding non clinical time -non clinical time is being picked up from the input sheet)
X40: Podiatrist Total Patient Facing time per year (hours) | Y40: =($Y$8*$Y$9)*(1-InputSheetOp1!F105) -> 1370.625 | Z40: =($Y$8*$Y$9)*(1-InputSheetOp2!F105) -> 1435.125 | AA40: number of hours of work this profesional can dedicate to clinical work per year (Excluding non clinical time -non clinical time is being picked up from the input sheet)
X41: Care Nav Total Patient Facing time per year (hours) DSN | Y41: =($Y$8*$Y$9)*(1-InputSheetOp1!F106) -> 1370.625 | Z41: =($Y$8*$Y$9)*(1-InputSheetOp2!F106) -> 1427.0625 | AA41: number of hours of work this profesional can dedicate to clinical work per year (Excluding non clinical time -non clinical time is being picked up from the input sheet)
X42: Add New | Y42: =($Y$8*$Y$9)*(1-InputSheetOp1!F107) -> 1370.625 | Z42: =($Y$8*$Y$9)*(1-InputSheetOp2!F107) -> 1612.5
X43: Add New | Y43: =($Y$8*$Y$9)*(1-InputSheetOp1!F108) -> 1370.625 | Z43: =($Y$8*$Y$9)*(1-InputSheetOp2!F108) -> 1612.5
X44: Add New | Y44: =($Y$8*$Y$9)*(1-InputSheetOp1!F109) -> 1370.625 | Z44: =($Y$8*$Y$9)*(1-InputSheetOp2!F109) -> 1612.5
X45: Add New | Y45: =($Y$8*$Y$9)*(1-InputSheetOp1!F110) -> 1370.625 | Z45: =($Y$8*$Y$9)*(1-InputSheetOp2!F110) -> 1612.5
X48: These rows were hidden on the input sheet- formulas are ready for checking now
X49: Supply v Demand | Y49: Option 1 | Z49: Option 1 | AA49: Option 2 | AB49: Option 2
Y50: 2016 | Z50: 2021 | AA50: =Y50 -> 2016 | AB50: =Z50 -> 2021
X51: gp supply | Y51: =InputSheetOp1!$D$123 -> 124 | Z51: =Y51-(Y51*Y4*Y6)*InputSheetOp1!K18+Y12*InputSheetOp1!K18-Y5*InputSheetOp1!K18+Y2*InputSheetOp1!K18*Y25 -> 131.0717185 | AA51: =InputSheetOp2!$D$124 -> 5.298438152 | AC51: no supply for Option2
X52: gp demand | Y52: =InputSheetOp1!$D$123 -> 124 | Z52: =IF(OR(InputSheetOp1!H20=0,InputSheetOp1!H20=""),(Y52*(1+Y29)*(1+InputSheetOp1!F30)^InputSheetOp1!K18),Y52*(1+InputSheetOp1!K19)*(1+InputSheetOp1!F30)^InputSheetOp1!K18) -> 150.5213354 | AA52: =InputSheetOp2!$D$124 -> 5.298438152 | AB52: =IF(OR(InputSheetOp2!H20=0,InputSheetOp2!H20=""),(AA52*(1+Z29)*(1+InputSheetOp2!F30)^InputSheetOp2!K18),AA52*(1+InputSheetOp2!K19)*(1+InputSheetOp2!F30)^InputSheetOp2!K18) -> 6.431677309 | AC52: WHEN POPULATION IS OVERRIDDEN IT WAS SAID IT HAS TO BE A CONSTANT ASSUMED GROWTH RATE-NOT THE BOROUGH POPULATION GROWTH (if left blank then use borough rate)
X53: nurse supply | Y53: =InputSheetOp1!$D$124 -> 45 | Z53: =Y53-(Y21*InputSheetOp1!$K$18)+(Y20*InputSheetOp1!$K$18) -> 43.11681161 | AA53: =InputSheetOp2!$D$125 -> 5.902957941 | AC53: no supply for Option2
X54: nurse demand | Y54: =InputSheetOp1!$D$124 -> 45 | Z54: =IF(OR(InputSheetOp1!H20=0,InputSheetOp1!H20=""),Y54*(1+Y29)*(1+InputSheetOp1!F30)^InputSheetOp1!$K$18,Y54*(1+InputSheetOp1!K19)*(1+InputSheetOp1!F30)^InputSheetOp1!$K$18) -> 54.62467818 | AA54: =InputSheetOp2!$D$125 -> 5.902957941 | AB54: =IF(OR(InputSheetOp2!H20=0,InputSheetOp2!H20=""),AA54*(1+Z29)*(1+InputSheetOp2!F30)^InputSheetOp2!$K$18,AA54*(1+InputSheetOp2!K19)*(1+InputSheetOp2!F30)^InputSheetOp2!$K$18) -> 7.165492841 | AC54: WHEN POPULATION IS OVERRIDDEN IT WAS SAID IT HAS TO BE A CONSTANT ASSUMED GROWTH RATE-NOT THE BOROUGH POPULATION GROWTH (if left blank then use borough rate)
X55: Appointments by GP | Y55: =Y62 -> 0.738796797
X56: Appointments by Nurse
X57: Appointments by Other Roles
X59: Total GP Time available | Y59: =Y51*Y31 -> 139965 | Z59: do we need this???-delete it if not needed in the future
X60: Average GP appointment Time (hours) | Y60: =(InputSheetOp1!D59*InputSheetOp1!F59+InputSheetOp1!D60*InputSheetOp1!F60+InputSheetOp1!D61*InputSheetOp1!F61+InputSheetOp1!D62*InputSheetOp1!F62+InputSheetOp1!D63*InputSheetOp1!F63+InputSheetOp1!D64*InputSheetOp1!F64+InputSheetOp1!D65*InputSheetOp1!F65+InputSheetOp1!D66*InputSheetOp1!F66)/60 -> 0.155 | Z60: do we need this???-delete it if not needed in the future
X61: Total GP Apps available | Y61: =Y59/Y60 -> 903000 | Z61: do we need this???-delete it if not needed in the future
X62: Prop of apps can be taken by GP | Y62: =Y61/InputSheetOp1!G30 -> 0.738796797 | Z62: do we need this???-delete it if not needed in the future
X67: Role | Y67: General
X68: GP | Y68: 6.69 | Z68: do we need this???-delete it if not needed in the future
X69: Diabetes Nurse | Y69: 8 | Z69: do we need this???-delete it if not needed in the future
X70: Consultant | Y70: 0 | Z70: do we need this???-delete it if not needed in the future
X71: Pharmacist | Y71: 0 | Z71: do we need this???-delete it if not needed in the future
X72: Dietcian | Y72: 0 | Z72: do we need this???-delete it if not needed in the future
X73: HCA | Y73: 3 | Z73: do we need this???-delete it if not needed in the future
X74: Psychologist | Y74: 0 | Z74: do we need this???-delete it if not needed in the future
X75: Physician Associate | Y75: 0 | Z75: do we need this???-delete it if not needed in the future
X76: Physiotherapist | Y76: 0 | Z76: do we need this???-delete it if not needed in the future
X77: Podiatrist | Y77: 0 | Z77: do we need this???-delete it if not needed in the future
X78: Care Nav | Y78: 0 | Z78: do we need this???-delete it if not needed in the future
X79: Role 12 | Y79: 0 | Z79: do we need this???-delete it if not needed in the future
X80: Role 13 | Y80: 0 | Z80: do we need this???-delete it if not needed in the future
X81: Role 14 | Y81: 0 | Z81: do we need this???-delete it if not needed in the future
X82: Role 15 | Y82: 0 | Z82: do we need this???-delete it if not needed in the future

Sheet RecordSheet2
D2: Future Do Nothing | E2: Scenario 1 | F2: Scenario 2 | G2: Scenario 3 | H2: Scenario 4 | I2: Scenario 5 | J2: Scenario 6 | K2: Scenario 7 | L2: Scenario 8 | M2: Scenario 9
B3: Non-Clinical
B4: Voluntary Sector | D4: 0 | E4: 0 | F4: 0 | G4: 0 | H4: 0 | I4: 0 | L4: 0
B5: Self Care | D5: 0.5 | E5: 0.5 | F5: 0 | G5: 0 | H5: 0.5 | I5: 0 | L5: 0.5
B6: Patient Led Group | D6: 0 | E6: 0 | F6: 0 | G6: 0 | H6: 0 | I6: 0 | L6: 0
B7: Social Prescribing | D7: 0 | E7: 0 | F7: 0 | G7: 0 | H7: 0 | I7: 0 | L7: 0
B8: Care Navigation | D8: 0 | E8: 0 | F8: 0 | G8: 0 | H8: 0 | I8: 0 | L8: 0
B9: Add New | D9: 0 | E9: 0 | F9: 0 | G9: 0 | H9: 0 | I9: 0 | L9: 0
B10: Add New | D10: 0 | E10: 0 | F10: 0 | G10: 0 | H10: 0 | I10: 0 | L10: 0
B11: Add New | D11: 0 | E11: 0 | F11: 0 | G11: 0 | H11: 0 | I11: 0 | L11: 0
B12: Clinical Time per consultation(mins);
B13: Face to Face | D13: 10 | E13: 10 | F13: 10 | G13: 10 | H13: 10 | I13: 10 | L13: 10
B14: e-consultation | D14: 10 | E14: 10 | F14: 10 | G14: 10 | H14: 10 | I14: 10 | L14: 10
B15: Telephone | D15: 5 | E15: 5 | F15: 5 | G15: 5 | H15: 5 | I15: 5 | L15: 5
B16: Group consultation | D16: 10 | E16: 10 | F16: 10 | G16: 10 | H16: 10 | I16: 10 | L16: 10
B17: Home Visit | D17: 20 | E17: 20 | F17: 20 | G17: 20 | H17: 20 | I17: 20 | L17: 20
B18: Email | D18: 5 | E18: 5 | F18: 5 | G18: 5 | H18: 5 | I18: 5 | L18: 5
B19: Add New | D19: 5 | E19: 5 | F19: 5 | G19: 5 | H19: 5 | I19: 5 | L19: 5
B20: Add New | D20: 0 | E20: 0 | F20: 0 | G20: 0 | H20: 0 | I20: 0 | L20: 0
B24: Roles
B25: GP | D25: 12.86714642 | E25: 6.431677309 | F25: 10.85777605 | G25: 20.35833008 | H25: 6.431677309 | I25: 26.05606409 | L25: 6.431677309
B26: Nurse | D26: 14.3238045 | E26: 7.165492841 | F26: 12.09658271 | G26: 22.68109258 | H26: 7.165492841 | I26: 22.68109258 | L26: 7.165492841
B27: Consultant | D27: 0 | E27: 0 | F27: 0 | G27: 0 | H27: 0 | I27: 0 | L27: 0
B28: Pharmacist | D28: 0.2427763475 | E28: 0.1423042402 | F28: 0.2402340006 | G28: 0.450438751 | H28: 0.1423042402 | I28: 0.450438751 | L28: 0.1423042402
B29: Dietician | D29: 0 | E29: 0 | F29: 0 | G29: 0 | H29: 0 | I29: 0 | L29: 0
B30: HCA | D30: 2.427763475 | E30: 1.23986354 | F30: 2.093102622 | G30: 3.924567416 | H30: 1.23986354 | I30: 3.924567416 | L30: 1.23986354
B31: Psychologist | D31: 0 | E31: 0 | F31: 0 | G31: 0 | H31: 0 | I31: 0 | L31: 0
B32: Physician Associate | D32: 0 | E32: 0 | F32: 0 | G32: 0 | H32: 0 | I32: 0 | L32: 0
B33: Physiotherapist | D33: 0 | E33: 0 | F33: 0 | G33: 0 | H33: 0 | I33: 0 | L33: 0
B34: Podiatrist | D34: 0 | E34: 0 | F34: 0 | G34: 0 | H34: 0 | I34: 0 | L34: 0
B35: DSN | D35: 3.641645212 | E35: 1.646146507 | F35: 2.778978057 | G35: 5.210583857 | H35: 1.646146507 | I35: 5.210583857 | L35: 1.646146507
B36: Add New | D36: 0 | E36: 0 | F36: 0 | G36: 0 | H36: 0 | I36: 0 | L36: 0
B37: Add New | D37: 0 | E37: 0 | F37: 0 | G37: 0 | H37: 0 | I37: 0 | L37: 0
B38: Add New | D38: 0 | E38: 0 | F38: 0 | G38: 0 | H38: 0 | I38: 0 | L38: 0
B39: Add New | D39: 0 | E39: 0 | F39: 0 | G39: 0 | H39: 0 | I39: 0 | L39: 0
C44: Focussed activity
B45: Future Do Nothing | C45: Diagnostic | D45: Education | E45: Maintenance | F45: Treatment | G45: Medicines Optimisation | H45: Risk Management | I45: - | J45: -
C46: 0.05 | D46: 0.25 | E46: 0.25 | F46: 0.25 | G46: 0.1 | H46: 0.1 | I46: 0 | J46: 0
B48: Face to Face | C48: 0.9 | D48: 0.9 | E48: 0.9 | F48: 0.9 | G48: 0.9 | H48: 0.9 | I48: 0 | J48: 0
B49: e-consultation | C49: 0 | D49: 0 | E49: 0 | F49: 0 | G49: 0 | H49: 0 | I49: 0 | J49: 0
B50: Telephone | C50: 0.1 | D50: 0.1 | E50: 0.1 | F50: 0.1 | G50: 0.1 | H50: 0.1 | I50: 0 | J50: 0
B51: Group consultation | C51: 0 | D51: 0 | E51: 0 | F51: 0 | G51: 0 | H51: 0 | I51: 0 | J51: 0
B52: Home Visit | C52: 0 | D52: 0 | E52: 0 | F52: 0 | G52: 0 | H52: 0 | I52: 0 | J52: 0
B53: Email | C53: 0 | D53: 0 | E53: 0 | F53: 0 | G53: 0 | H53: 0 | I53: 0 | J53: 0
B54: Add New | C54: 0 | D54: 0 | E54: 0 | F54: 0 | G54: 0 | H54: 0 | I54: 0 | J54: 0
B55: Add New | C55: 0 | D55: 0 | E55: 0 | F55: 0 | G55: 0 | H55: 0 | I55: 0 | J55: 0
C59: Focussed activity
B60: Scenario 1 | C60: Diagnostic | D60: Education | E60: Maintenance | F60: Treatment | G60: Medicines Optimisation | H60: Risk Management | I60: - | J60: -
C61: 0.05 | D61: 0.25 | E61: 0.25 | F61: 0.25 | G61: 0.1 | H61: 0.1 | I61: 0 | J61: 0
B63: Face to Face | C63: 0.9 | D63: 0.9 | E63: 0.9 | F63: 0.9 | G63: 0.9 | H63: 0.9 | I63: 0 | J63: 0
B64: e-consultation | C64: 0 | D64: 0 | E64: 0 | F64: 0 | G64: 0 | H64: 0 | I64: 0 | J64: 0
B65: Telephone | C65: 0.1 | D65: 0.1 | E65: 0.1 | F65: 0.1 | G65: 0.1 | H65: 0.1 | I65: 0 | J65: 0
B66: Group consultation | C66: 0 | D66: 0 | E66: 0 | F66: 0 | G66: 0 | H66: 0 | I66: 0 | J66: 0
B67: Home Visit | C67: 0 | D67: 0 | E67: 0 | F67: 0 | G67: 0 | H67: 0 | I67: 0 | J67: 0
B68: Email | C68: 0 | D68: 0 | E68: 0 | F68: 0 | G68: 0 | H68: 0 | I68: 0 | J68: 0
B69: Add New | C69: 0 | D69: 0 | E69: 0 | F69: 0 | G69: 0 | H69: 0 | I69: 0 | J69: 0
B70: Add New | C70: 0 | D70: 0 | E70: 0 | F70: 0 | G70: 0 | H70: 0 | I70: 0 | J70: 0
C74: Focussed activity
B75: Scenario 2 | C75: Diagnostic | D75: Education | E75: Maintenance | F75: Treatment | G75: Medicines Optimisation | H75: Risk Management | I75: - | J75: -
C76: 0.05 | D76: 0.25 | E76: 0.25 | F76: 0.25 | G76: 0.1 | H76: 0.1 | I76: 0 | J76: 0
B78: Face to Face | C78: 0.9 | D78: 0.9 | E78: 0.9 | F78: 0.9 | G78: 0.9 | H78: 0.9 | I78: 0 | J78: 0
B79: e-consultation | C79: 0 | D79: 0 | E79: 0 | F79: 0 | G79: 0 | H79: 0 | I79: 0 | J79: 0
B80: Telephone | C80: 0.1 | D80: 0.1 | E80: 0.1 | F80: 0.1 | G80: 0.1 | H80: 0.1 | I80: 0 | J80: 0
B81: Group consultation | C81: 0 | D81: 0 | E81: 0 | F81: 0 | G81: 0 | H81: 0 | I81: 0 | J81: 0
B82: Home Visit | C82: 0 | D82: 0 | E82: 0 | F82: 0 | G82: 0 | H82: 0 | I82: 0 | J82: 0
B83: Email | C83: 0 | D83: 0 | E83: 0 | F83: 0 | G83: 0 | H83: 0 | I83: 0 | J83: 0
B84: Add New | C84: 0 | D84: 0 | E84: 0 | F84: 0 | G84: 0 | H84: 0 | I84: 0 | J84: 0
B85: Add New | C85: 0 | D85: 0 | E85: 0 | F85: 0 | G85: 0 | H85: 0 | I85: 0 | J85: 0
C89: Focussed activity
B90: Scenario 3 | C90: Diagnostic | D90: Education | E90: Maintenance | F90: Treatment | G90: Medicines Optimisation | H90: Risk Management | I90: - | J90: -
C91: 0.05 | D91: 0.25 | E91: 0.25 | F91: 0.25 | G91: 0.1 | H91: 0.1 | I91: 0 | J91: 0
B93: Face to Face | C93: 0.9 | D93: 0.9 | E93: 0.9 | F93: 0.9 | G93: 0.9 | H93: 0.9 | I93: 0 | J93: 0
B94: e-consultation | C94: 0 | D94: 0 | E94: 0 | F94: 0 | G94: 0 | H94: 0 | I94: 0 | J94: 0
B95: Telephone | C95: 0.1 | D95: 0.1 | E95: 0.1 | F95: 0.1 | G95: 0.1 | H95: 0.1 | I95: 0 | J95: 0
B96: Group consultation | C96: 0 | D96: 0 | E96: 0 | F96: 0 | G96: 0 | H96: 0 | I96: 0 | J96: 0
B97: Home Visit | C97: 0 | D97: 0 | E97: 0 | F97: 0 | G97: 0 | H97: 0 | I97: 0 | J97: 0
B98: Email | C98: 0 | D98: 0 | E98: 0 | F98: 0 | G98: 0 | H98: 0 | I98: 0 | J98: 0
B99: Add New | C99: 0 | D99: 0 | E99: 0 | F99: 0 | G99: 0 | H99: 0 | I99: 0 | J99: 0
B100: Add New | C100: 0 | D100: 0 | E100: 0 | F100: 0 | G100: 0 | H100: 0 | I100: 0 | J100: 0
C104: Focussed activity
B105: Scenario 4 | C105: Diagnostic | D105: Education | E105: Maintenance | F105: Treatment | G105: Medicines Optimisation | H105: Risk Management | I105: - | J105: -
C106: 0.05 | D106: 0.25 | E106: 0.25 | F106: 0.25 | G106: 0.1 | H106: 0.1 | I106: 0 | J106: 0
B108: Face to Face | C108: 0.9 | D108: 0.9 | E108: 0.9 | F108: 0.9 | G108: 0.9 | H108: 0.9 | I108: 0 | J108: 0
B109: e-consultation | C109: 0 | D109: 0 | E109: 0 | F109: 0 | G109: 0 | H109: 0 | I109: 0 | J109: 0
B110: Telephone | C110: 0.1 | D110: 0.1 | E110: 0.1 | F110: 0.1 | G110: 0.1 | H110: 0.1 | I110: 0 | J110: 0
B111: Group consultation | C111: 0 | D111: 0 | E111: 0 | F111: 0 | G111: 0 | H111: 0 | I111: 0 | J111: 0
B112: Home Visit | C112: 0 | D112: 0 | E112: 0 | F112: 0 | G112: 0 | H112: 0 | I112: 0 | J112: 0
B113: Email | C113: 0 | D113: 0 | E113: 0 | F113: 0 | G113: 0 | H113: 0 | I113: 0 | J113: 0
B114: Add New | C114: 0 | D114: 0 | E114: 0 | F114: 0 | G114: 0 | H114: 0 | I114: 0 | J114: 0
B115: Add New | C115: 0 | D115: 0 | E115: 0 | F115: 0 | G115: 0 | H115: 0 | I115: 0 | J115: 0
C119: Focussed activity
B120: Scenario 5 | C120: Diagnostic | D120: Education | E120: Maintenance | F120: Treatment | G120: Medicines Optimisation | H120: Risk Management | I120: - | J120: -
C121: 0.05 | D121: 0.25 | E121: 0.25 | F121: 0.25 | G121: 0.1 | H121: 0.1 | I121: 0 | J121: 0
B123: Face to Face | C123: 0.9 | D123: 0.9 | E123: 0.9 | F123: 0.9 | G123: 0.9 | H123: 0.9 | I123: 0 | J123: 0
B124: e-consultation | C124: 0 | D124: 0 | E124: 0 | F124: 0 | G124: 0 | H124: 0 | I124: 0 | J124: 0 | P124: 0 | Q124: 0 | R124: 0 | S124: 0
B125: Telephone | C125: 0.1 | D125: 0.1 | E125: 0.1 | F125: 0.1 | G125: 0.1 | H125: 0.1 | I125: 0 | J125: 0 | P125: 0.1 | Q125: 0.1 | R125: 0.1 | S125: 0.1 | W125: 6
B126: Group consultation | C126: 0 | D126: 0 | E126: 0 | F126: 0 | G126: 0 | H126: 0 | I126: 0 | J126: 0 | P126: 0 | Q126: 0 | R126: 0 | S126: 0
B127: Home Visit | C127: 0 | D127: 0 | E127: 0 | F127: 0 | G127: 0 | H127: 0 | I127: 0 | J127: 0 | P127: 0 | Q127: 0 | R127: 0 | S127: 0
B128: Email | C128: 0 | D128: 0 | E128: 0 | F128: 0 | G128: 0 | H128: 0 | I128: 0 | J128: 0 | P128: 0 | Q128: 0 | R128: 0 | S128: 0
B129: Add New | C129: 0 | D129: 0 | E129: 0 | F129: 0 | G129: 0 | H129: 0 | I129: 0 | J129: 0 | P129: 0 | Q129: 0 | R129: 0 | S129: 0
B130: Add New | C130: 0 | D130: 0 | E130: 0 | F130: 0 | G130: 0 | H130: 0 | I130: 0 | J130: 0 | P130: 0 | Q130: 0 | R130: 0 | S130: 0
C133: Focussed activity | D133: Risk Management
B134: Scenario 6 | C134: Diagnostic | D134: 0.1 | E134: Maintenance | F134: Treatment | G134: Medicines Optimisation | H134: Risk Management | I134: - | O134: Medicines Optimisation | P134: Medicines Optimisation | Q134: Medicines Optimisation | R134: Medicines Optimisation | S134: Medicines Optimisation
Q135: 0.1 | R135: 0.1 | S135: 0.1
B137: Face to Face | Q137: 0.9 | R137: 0.9 | S137: 0.9 | W137: 7
B138: e-consultation | Q138: 0 | R138: 0 | S138: 0
B139: Telephone
B140: Group consultation
B141: Home Visit
B142: Email
B143: Add New
B144: Add New
C148: Focussed activity
B149: Scenario 7 | C149: Diagnostic | D149: Education | E149: Maintenance | F149: Treatment | G149: Medicines Optimisation | H149: Risk Management | I149: - | J149: -
B152: Face to Face
B153: e-consultation
B154: Telephone
B155: Group consultation
B156: Home Visit
B157: Email
B158: Add New
B159: Add New
C162: Focussed activity
B163: Scenario 8 | C163: Diagnostic | D163: Education | E163: Maintenance | F163: Treatment | G163: Medicines Optimisation | H163: Risk Management | I163: - | J163: -
C164: 0.05 | D164: 0.25 | E164: 0.25 | F164: 0.25 | G164: 0.1 | H164: 0.1 | I164: 0 | J164: 0
B166: Face to Face | C166: 0.9 | D166: 0.9 | E166: 0.9 | F166: 0.9 | G166: 0.9 | H166: 0.9 | I166: 0 | J166: 0
B167: e-consultation | C167: 0 | D167: 0 | E167: 0 | F167: 0 | G167: 0 | H167: 0 | I167: 0 | J167: 0
B168: Telephone | C168: 0.1 | D168: 0.1 | E168: 0.1 | F168: 0.1 | G168: 0.1 | H168: 0.1 | I168: 0 | J168: 0
B169: Group consultation | C169: 0 | D169: 0 | E169: 0 | F169: 0 | G169: 0 | H169: 0 | I169: 0 | J169: 0
B170: Home Visit | C170: 0 | D170: 0 | E170: 0 | F170: 0 | G170: 0 | H170: 0 | I170: 0 | J170: 0
B171: Email | C171: 0 | D171: 0 | E171: 0 | F171: 0 | G171: 0 | H171: 0 | I171: 0 | J171: 0
B172: Add New | C172: 0 | D172: 0 | E172: 0 | F172: 0 | G172: 0 | H172: 0 | I172: 0 | J172: 0
B173: Add New | C173: 0 | D173: 0 | E173: 0 | F173: 0 | G173: 0 | H173: 0 | I173: 0 | J173: 0
C178: Focussed activity
B179: Scenario 9 | C179: Diagnostic | D179: Education | E179: Maintenance | F179: Treatment | G179: Medicines Optimisation | H179: Risk Management | I179: - | J179: -
B182: Face to Face
B183: e-consultation
B184: Telephone
B185: Group consultation
B186: Home Visit
B187: Email
B188: Add New
B189: Add New
